Workbook

Sheet Examples (hidden)
B1: Black | C1: CIE red | D1: CIE grey 40% | E1: CIE grey 70% | F1: CIE grey | G1: CIE grey 25% | H1: CIE red 50% | I1: CIE red 30% | L1: Black solid | M1: CIE red solid | N1: CIE grey 70% | O1: Black dashes | P1: CIE red dashes | Q1: CIE grey 70% dashes | S1: X value | T1: 1st Y value | U1: 2nd Y value | X1: Black | Y1: CIE red | Z1: CIE red 70% | AA1: CIE grey 40%
A2: 2003-04 | B2: 36.19 | C2: 36.88 | D2: 21.56 | E2: 5.36 | F2: 3.01 | G2: 10 | H2: 3.01 | I2: 10 | K2: 2003-04 | L2: 33.19 | M2: 36.88 | N2: 21.56 | O2: 5.36 | P2: 3.01 | Q2: 10 | S2: 1.8 | T2: 10 | U2: 17 | W2: 2003-04 | X2: 33.19 | Y2: 36.88 | Z2: 21.56 | AA2: 5.36
A3: 2004-05 | B3: 39.39 | C3: 32.02 | D3: 21.6 | E3: 7.01 | F3: 3.36 | G3: 12 | H3: 3.36 | I3: 12 | K3: 2004-05 | L3: 39.39 | M3: 32.02 | N3: 21.6 | O3: 7.01 | P3: 3.36 | Q3: 12 | S3: 2.3 | T3: 12 | U3: 9 | W3: 2004-05 | X3: 39.39 | Y3: 32.02 | Z3: 21.6 | AA3: 7.01
A4: 2005-06 | B4: 42.78 | C4: 29.91 | D4: 18.35 | E4: 6.33 | F4: 2.63 | G4: 14 | H4: 2.63 | I4: 14 | K4: 2005-06 | L4: 42.78 | M4: 29.91 | N4: 18.35 | O4: 6.33 | P4: 2.63 | Q4: 14 | S4: 3.7 | T4: 16 | U4: 14 | W4: 2005-06 | X4: 42.78 | Y4: 29.91 | Z4: 18.35 | AA4: 6.33
A5: 2006-07 | B5: 42.13 | C5: 26.53 | D5: 21.6 | E5: 7.01 | F5: 2.72 | G5: 16 | H5: 2.72 | I5: 16 | K5: 2006-07 | L5: 42.13 | M5: 26.53 | N5: 21.6 | O5: 7.01 | P5: 2.72 | Q5: 16 | S5: 4.1 | T5: 8 | U5: 23 | W5: 2006-07 | X5: 42.13 | Y5: 26.53 | Z5: 21.6 | AA5: 7.01
A6: 2007-08 | B6: 41.69 | C6: 24.76 | D6: 23.98 | E6: 7 | F6: 2.57 | G6: 18 | H6: 2.57 | I6: 18 | K6: 2007-08 | L6: 41.69 | M6: 24.76 | N6: 23.98 | O6: 7 | P6: 2.57 | Q6: 18 | S6: 5.5 | T6: 14 | U6: 27 | W6: 2007-08 | X6: 41.69 | Y6: 24.76 | Z6: 23.98 | AA6: 7
A7: 2008-09 | B7: 39.39 | C7: 32.02 | D7: 21.6 | E7: 7.01 | F7: 3.36 | G7: 12 | H7: 3.36 | I7: 12 | K7: 2008-09 | L7: 39.39 | M7: 32.02 | N7: 21.6 | O7: 7.01 | P7: 3.36 | Q7: 12 | W7: 2008-09 | X7: 39.39 | Y7: 32.02 | Z7: 21.6 | AA7: 7.01
A8: 2009-10 | B8: 42.13 | C8: 26.53 | D8: 21.6 | E8: 7.01 | F8: 2.72 | G8: 16 | H8: 2.72 | I8: 16 | K8: 2009-10 | L8: 42.13 | M8: 26.53 | N8: 21.6 | O8: 7.01 | P8: 2.72 | Q8: 16 | W8: 2009-10 | X8: 42.13 | Y8: 26.53 | Z8: 21.6 | AA8: 7.01
A9: 2010-11 | B9: 45 | C9: 22 | D9: 26 | E9: 8 | F9: 2 | G9: 20 | H9: 2 | I9: 20 | K9: 2010-11 | L9: 45 | M9: 22 | N9: 26 | O9: 8 | P9: 2 | Q9: 20 | W9: 2010-11 | X9: 45 | Y9: 22 | Z9: 26 | AA9: 8
A11: – en rule for when needed

Sheet Description
B2: TAXI MODEL | F2: STEPS TO USE THE MODEL
B4: CONTENTS | F4: 1. On the Sim_Template worksheet, change the inputs in any of the green cells to create a new simulation
B5: Worksheet | C5: Purpose | F5: 2. Click on the 'Run Model' button
B6: Inputs and assumptions | C6: This worksheet sets out the assumptions and input data that underpin the taxi model | F6: 3. Results appear in the 'Detailed model outputs' section of Sim_Template and are compared with the base case below the 'detailed model outputs' section.
B7: Base model | C7: This worksheet characterises the Sydney taxi industry for the year 2012/13. This is the baseline for the model. Calibration is undertaken of the model against input data. | F7: 4. If any of the inputs and assumptions are changed on the 'inputs and assumptions' worksheet, the Base model must be run (by clicking on the 'run model' button on the Base model worksheet) before a simulation is run.
B8: Sim_Template | C8: This worksheet is used to undertake a simulation.
B10: Colour coding
B11: Input data
B12: Assumptions
B13: Simulation inputs
B15: MODEL STRUCTURE
B17: The taxi model is a combination of 3 equations.
C18: 1. A demand equation, linking demand for taxi services to the (real) price of services and waiting time
C19: 2. A waiting time equation, linking the average waiting time to the number of taxi on the road and the share taken up by demand
C20: 3. A taxi entry condition, linking the decision of a taxi to drive a shift to the returns available. This is capped by the number of licences available.
B21: The model is broken into 14 shifts, for each weekday and weeknight
B23: MODEL EQUATIONS
B25: The model allows for solution of quantity of taxi services (Q), waiting time (W) and number of taxis (T) using 3 options for taxi entry.
B26: 1. Fixed taxi numbers based on the number of licences available
B27: 2. Free entry of taxis but an upward sloping cost curve for additional taxis that enter
B28: 3. Free entry of taxis and a flat cost curve.
B29: Solutions are obtained for each case and appropriate values then selected by the model.
B30: Demand equation
B33: Waiting time equation
B37: Taxi numbers equation
B39: Free entry, upward sloping supply
B42: Free entry, flat supply
B45: Fixed entry

Sheet Inputs and assumptions
A2: Assumptions and inputs by shift
A3: Day | B3: Description | C3: Unit | D3: Monday | E3: Tuesday | F3: Wednesday | G3: Thursday | H3: Friday | I3: Saturday | J3: Sunday | K3: Monday | L3: Tuesday | M3: Wednesday | N3: Thursday | O3: Friday | P3: Saturday | Q3: Sunday
A4: Shift | D4: Day | E4: Day | F4: Day | G4: Day | H4: Day | I4: Day | J4: Day | K4: Night | L4: Night | M4: Night | N4: Night | O4: Night | P4: Night | Q4: Night | S4: DO NOT DELETE
A5: Price elasticity of demand | B5: Impact of a 1% price decrease on demand | C5: Unit | D5: 0.8 | E5: 0.8 | F5: 0.8 | G5: 0.8 | H5: 0.8 | I5: 0.8 | J5: 0.8 | K5: 0.8 | L5: 0.8 | M5: 0.8 | N5: 0.8 | O5: 0.8 | P5: 0.8 | Q5: 0.8 | S5: Yes
A6: Weekend labour cost premium applied | B6: Yes if the shift is a weekend | C6: Yes/No | D6: No | E6: No | F6: No | G6: No | H6: No | I6: Yes | J6: Yes | K6: No | L6: No | M6: No | N6: No | O6: Yes | P6: Yes | Q6: Yes | S6: No
A7: Revenue per taxi | B7: Revenue per taxi from the CIE survey undertaken in October 2011 (including GST) | C7: $ | D7: 263.8 | E7: 259.5 | F7: 264.1 | G7: 268.6 | H7: 282.9 | I7: 276.2 | J7: 279 | K7: 258.9 | L7: 283 | M7: 309.3 | N7: 341.2 | O7: 423.4 | P7: 426.7 | Q7: 275
A8: Share of standard taxis on the road | B8: The proportion of non-WAT taxis on the road | C8: Per cent | D8: 80.51806543 | E8: 81.27663018 | F8: 82.12163046 | G8: 85.62553515 | H8: 82.28093073 | I8: 59.74686969 | J8: 53.92299986 | K8: 65.29732991 | L8: 73.02747428 | M8: 76.48401104 | N8: 81.35104533 | O8: 87.932784 | P8: 82.45657332 | Q8: 53.53463517
A9: Share of trips at standard distance rate | B9: The proportion of trips in each shift for which the standard distance rate applies (rather than the night time distance rate) | C9: Per cent | D9: 0.9 | E9: 0.9 | F9: 0.9 | G9: 0.9 | H9: 0.9 | I9: 0.9 | J9: 0.9 | K9: 0.75 | L9: 0.75 | M9: 0.75 | N9: 0.75 | O9: 0.6 | P9: 0.4 | Q9: 0.75
A10: W_base | B10: Baseline waiting time | C10: Minutes | D10: 7.933993399 | E10: 7.933993399 | F10: 7.933993399 | G10: 7.933993399 | H10: 7.731132075 | I10: 7.731132075 | J10: 7.7125 | K10: 7.060283688 | L10: 7.060283688 | M10: 7.060283688 | N10: 7.060283688 | O10: 9.166112957 | P10: 9.166112957 | Q10: 9.954545455
B12: Fares (including GST)
B13: Flagfall ($) | C13: 3.5 | F13: Colour coding
B14: Standard distance rate ($/km) | C14: 2.14 | F14: Input data
B15: Night time distance rate ($/km) | C15: 2.568 | F15: Assumptions
B16: Waiting time ($/hour when vehicle slower than 26km/hour) | C16: 55.3
B17: Booking fee ($/booking) | C17: 2.4
B18: Taxi fare increase July 2012 | C18: 0.037
B19: GST | C19: 0.1
B21: Costs (excluding GST) | F21: Operator costs (/taxi/yr) | H21: Amount ($) | I21: % Variable
B22: Labour cost ($/hour) | C22: =H29 -> 10 | F22: Operator administration | H22: 9223
B23: Weekend labour cost premium ($ per hour) | C23: =H30 -> 2 | F23: Maintenance | H23: 7562 | I23: 0.5
B24: Operator variable costs ($/km) | C24: =SUMPRODUCT(H23:H24,I23:I24)/C43 -> 0.09684579439 | F24: Insurance | H24: 13163 | I24: 0.5
B25: Operator costs (fixed, non plate, $/year) | C25: =SUM(H22:H26) - SUMPRODUCT(H23:H24,I23:I24) -> 32621.5 | F25: Vehicle lease | H25: 5805
B26: Fuel cost ($/km) | C26: =H31/C43 -> 0.136588785 | F26: Network fees | H26: 7231
B27: Cleaning ($/night shift) | C27: =H32 -> 11
B28: For calculation of peak licence value: | F28: Driver costs
B29: Annual fixed costs to be apportioned over fewer shifts | C29: =H23+H24+H26-SUMPRODUCT(H23:H24,I23:I24) -> 17593.5 | F29: Labour ($/hr) | H29: 10
F30: Weekend labour premium ($/hr) | H30: 2
B31: Current taxi licence numbers | F31: Fuel ($/taxi/yr) | H31: 14615
B32: Fringe | C32: 14 | F32: Cleaning ($/night shift) | H32: 11
B33: Unrestricted | C33: 4729
B34: WAT | C34: 618
B35: PAL | C35: 286
B36: Unrestricted + fringe | C36: =SUM(C32:C33) -> 4743
B37: Total non-PAL | C37: =SUM(C32:C34) -> 5361
B38: Total | C38: =SUM(C32:C35) -> 5647
B40: Other inputs and assumptions
B41: Hours per shift (no.) | C41: 10
B42: Average trip length (kms) | C42: 7
B43: Total km travelled /taxi/year | C43: 107000
B44: Number of shifts operated per year | C44: 552
B45: Share of trips with booking fee (per cent) | C45: 0.2
B46: Speed when on waiting time (km/hour) | C46: =26/2 -> 13
B47: Average speed (km/hour) | C47: 33 | F47: Meter data
B48: Revenue at waiting time rate/revenue at dist. rate | C48: =H50/H51 -> 0.3820331681 | F48: Total km | H48: 5141146
B49: Minutes on waiting time rate (/trip) | C49: =((C42*C14)*C48/(C16+C48*C46*C14))*60 -> 5.208266047 | F49: Occupied km | H49: 2577606
B50: Kms on distance rate (/trip) | C50: =C42-C49/60*C46 -> 5.871542356 | F50: Revenue at time rate ($) | H50: 1990899
B51: Multiplier for occupied to total kms for a trip | C51: =H48/H49 -> 1.994542998 | F51: Revenue at distance rate ($) | H51: 5211325
B52: Value of time ($/hour) | C52: 30
B53: Share of cabs at which constraint on number of cabs becomes binding | C53: 0.7
B54: Increase in constraint for highest demand shift (%) | C54: 0.17
B55: Per cent of shifts to which higher constraint not applied | C55: 0.25
B56: Slope of the supply curve | C56: 40
B57: Standard deviation of expected shift revenue | C57: =12.5240326851699*2 -> 25.04806537
B58: Calibration constant to account for rising marginal costs | C58: =C56*3/4 -> 30
B59: Flat or upward sloping cost curve | C59: Upward sloping
B60: For calculation of peak licence value: | L60: DO NOT DELETE
B61: What revenue premium can peak licences obtain by working across best part of shifts? | C61: 0.07 | L61: Flat
B62: Of shifts available, what per cent do peak licences do (%) | C62: 0.9 | L62: Upward sloping

Sheet Base model
A2: CALIBRATION OF MODEL PARAMETERS
A3: Day | B3: Description | C3: Unit | D3: Monday | E3: Tuesday | F3: Wednesday | G3: Thursday | H3: Friday | I3: Saturday | J3: Sunday | K3: Monday | L3: Tuesday | M3: Wednesday | N3: Thursday | O3: Friday | P3: Saturday | Q3: Sunday
A4: Shift | D4: Day | E4: Day | F4: Day | G4: Day | H4: Day | I4: Day | J4: Day | K4: Night | L4: Night | M4: Night | N4: Night | O4: Night | P4: Night | Q4: Night
A5: Revenue adjustment for fare increases | B5: Revenue adjustment for price increase from July 2012 | C5: Per cent | D5: =1+'Inputs and assumptions'!$C$18 -> 1.037 | E5: =1+'Inputs and assumptions'!$C$18 -> 1.037 | F5: =1+'Inputs and assumptions'!$C$18 -> 1.037 | G5: =1+'Inputs and assumptions'!$C$18 -> 1.037 | H5: =1+'Inputs and assumptions'!$C$18 -> 1.037 | I5: =1+'Inputs and assumptions'!$C$18 -> 1.037 | J5: =1+'Inputs and assumptions'!$C$18 -> 1.037 | K5: =1+'Inputs and assumptions'!$C$18 -> 1.037 | L5: =1+'Inputs and assumptions'!$C$18 -> 1.037 | M5: =1+'Inputs and assumptions'!$C$18 -> 1.037 | N5: =1+'Inputs and assumptions'!$C$18 -> 1.037 | O5: =1+'Inputs and assumptions'!$C$18 -> 1.037 | P5: =1+'Inputs and assumptions'!$C$18 -> 1.037 | Q5: =1+'Inputs and assumptions'!$C$18 -> 1.037
A6: T_max | B6: The maximum number of taxis, based on the number of taxi plates | C6: No. | D6: ='Inputs and assumptions'!$C$37 -> 5361 | E6: ='Inputs and assumptions'!$C$37 -> 5361 | F6: ='Inputs and assumptions'!$C$37 -> 5361 | G6: ='Inputs and assumptions'!$C$37 -> 5361 | H6: ='Inputs and assumptions'!$C$37 -> 5361 | I6: ='Inputs and assumptions'!$C$37 -> 5361 | J6: ='Inputs and assumptions'!$C$37 -> 5361 | K6: ='Inputs and assumptions'!$C$38 -> 5647 | L6: ='Inputs and assumptions'!$C$38 -> 5647 | M6: ='Inputs and assumptions'!$C$38 -> 5647 | N6: ='Inputs and assumptions'!$C$38 -> 5647 | O6: ='Inputs and assumptions'!$C$38 -> 5647 | P6: ='Inputs and assumptions'!$C$38 -> 5647 | Q6: ='Inputs and assumptions'!$C$38 -> 5647
A7: T_base | B7: The number of taxis actually on the road, based on network data | C7: No. | D7: ='Inputs and assumptions'!D8/100*D6 -> 4316.573488 | E7: ='Inputs and assumptions'!E8/100*E6 -> 4357.240144 | F7: ='Inputs and assumptions'!F8/100*F6 -> 4402.540609 | G7: ='Inputs and assumptions'!G8/100*G6 -> 4590.38494 | H7: ='Inputs and assumptions'!H8/100*H6 -> 4411.080696 | I7: ='Inputs and assumptions'!I8/100*I6 -> 3203.029684 | J7: ='Inputs and assumptions'!J8/100*J6 -> 2890.812023 | K7: ='Inputs and assumptions'!K8/100*K6 -> 3687.34022 | L7: ='Inputs and assumptions'!L8/100*L6 -> 4123.861473 | M7: ='Inputs and assumptions'!M8/100*M6 -> 4319.052103 | N7: ='Inputs and assumptions'!N8/100*N6 -> 4593.89353 | O7: ='Inputs and assumptions'!O8/100*O6 -> 4965.564312 | P7: ='Inputs and assumptions'!P8/100*P6 -> 4656.322695 | Q7: ='Inputs and assumptions'!Q8/100*Q6 -> 3023.100848
A8: T_max_effective | B8: The maximum effective number of taxis on the road | C8: No. | D8: =('Inputs and assumptions'!$C$53+MAX('Inputs and assumptions'!D8-PERCENTILE('Inputs and assumptions'!$D$8:$Q$8,'Inputs and assumptions'!$C$55),0)/(MAX('Inputs and assumptions'!$D$8:$Q$8)-PERCENTILE('Inputs and assumptions'!$D$8:$Q$8,'Inputs and assumptions'!$C$55))*'Inputs and assumptions'!$C$54)*D6 -> 4337.664222 | E8: =('Inputs and assumptions'!$C$53+MAX('Inputs and assumptions'!E8-PERCENTILE('Inputs and assumptions'!$D$8:$Q$8,'Inputs and assumptions'!$C$55),0)/(MAX('Inputs and assumptions'!$D$8:$Q$8)-PERCENTILE('Inputs and assumptions'!$D$8:$Q$8,'Inputs and assumptions'!$C$55))*'Inputs and assumptions'!$C$54)*E6 -> 4371.057252 | F8: =('Inputs and assumptions'!$C$53+MAX('Inputs and assumptions'!F8-PERCENTILE('Inputs and assumptions'!$D$8:$Q$8,'Inputs and assumptions'!$C$55),0)/(MAX('Inputs and assumptions'!$D$8:$Q$8)-PERCENTILE('Inputs and assumptions'!$D$8:$Q$8,'Inputs and assumptions'!$C$55))*'Inputs and assumptions'!$C$54)*F6 -> 4408.255288 | G8: =('Inputs and assumptions'!$C$53+MAX('Inputs and assumptions'!G8-PERCENTILE('Inputs and assumptions'!$D$8:$Q$8,'Inputs and assumptions'!$C$55),0)/(MAX('Inputs and assumptions'!$D$8:$Q$8)-PERCENTILE('Inputs and assumptions'!$D$8:$Q$8,'Inputs and assumptions'!$C$55))*'Inputs and assumptions'!$C$54)*G6 -> 4562.501836 | H8: =('Inputs and assumptions'!$C$53+MAX('Inputs and assumptions'!H8-PERCENTILE('Inputs and assumptions'!$D$8:$Q$8,'Inputs and assumptions'!$C$55),0)/(MAX('Inputs and assumptions'!$D$8:$Q$8)-PERCENTILE('Inputs and assumptions'!$D$8:$Q$8,'Inputs and assumptions'!$C$55))*'Inputs and assumptions'!$C$54)*H6 -> 4415.267898 | I8: =('Inputs and assumptions'!$C$53+MAX('Inputs and assumptions'!I8-PERCENTILE('Inputs and assumptions'!$D$8:$Q$8,'Inputs and assumptions'!$C$55),0)/(MAX('Inputs and assumptions'!$D$8:$Q$8)-PERCENTILE('Inputs and assumptions'!$D$8:$Q$8,'Inputs and assumptions'!$C$55))*'Inputs and assumptions'!$C$54)*I6 -> 3752.7 | J8: =('Inputs and assumptions'!$C$53+MAX('Inputs and assumptions'!J8-PERCENTILE('Inputs and assumptions'!$D$8:$Q$8,'Inputs and assumptions'!$C$55),0)/(MAX('Inputs and assumptions'!$D$8:$Q$8)-PERCENTILE('Inputs and assumptions'!$D$8:$Q$8,'Inputs and assumptions'!$C$55))*'Inputs and assumptions'!$C$54)*J6 -> 3752.7 | K8: =('Inputs and assumptions'!$C$53+MAX('Inputs and assumptions'!K8-PERCENTILE('Inputs and assumptions'!$D$8:$Q$8,'Inputs and assumptions'!$C$55),0)/(MAX('Inputs and assumptions'!$D$8:$Q$8)-PERCENTILE('Inputs and assumptions'!$D$8:$Q$8,'Inputs and assumptions'!$C$55))*'Inputs and assumptions'!$C$54)*K6 -> 3952.9 | L8: =('Inputs and assumptions'!$C$53+MAX('Inputs and assumptions'!L8-PERCENTILE('Inputs and assumptions'!$D$8:$Q$8,'Inputs and assumptions'!$C$55),0)/(MAX('Inputs and assumptions'!$D$8:$Q$8)-PERCENTILE('Inputs and assumptions'!$D$8:$Q$8,'Inputs and assumptions'!$C$55))*'Inputs and assumptions'!$C$54)*L6 -> 4221.73389 | M8: =('Inputs and assumptions'!$C$53+MAX('Inputs and assumptions'!M8-PERCENTILE('Inputs and assumptions'!$D$8:$Q$8,'Inputs and assumptions'!$C$55),0)/(MAX('Inputs and assumptions'!$D$8:$Q$8)-PERCENTILE('Inputs and assumptions'!$D$8:$Q$8,'Inputs and assumptions'!$C$55))*'Inputs and assumptions'!$C$54)*M6 -> 4382.01278 | N8: =('Inputs and assumptions'!$C$53+MAX('Inputs and assumptions'!N8-PERCENTILE('Inputs and assumptions'!$D$8:$Q$8,'Inputs and assumptions'!$C$55),0)/(MAX('Inputs and assumptions'!$D$8:$Q$8)-PERCENTILE('Inputs and assumptions'!$D$8:$Q$8,'Inputs and assumptions'!$C$55))*'Inputs and assumptions'!$C$54)*N6 -> 4607.696147 | O8: =('Inputs and assumptions'!$C$53+MAX('Inputs and assumptions'!O8-PERCENTILE('Inputs and assumptions'!$D$8:$Q$8,'Inputs and assumptions'!$C$55),0)/(MAX('Inputs and assumptions'!$D$8:$Q$8)-PERCENTILE('Inputs and assumptions'!$D$8:$Q$8,'Inputs and assumptions'!$C$55))*'Inputs and assumptions'!$C$54)*O6 -> 4912.89 | P8: =('Inputs and assumptions'!$C$53+MAX('Inputs and assumptions'!P8-PERCENTILE('Inputs and assumptions'!$D$8:$Q$8,'Inputs and assumptions'!$C$55),0)/(MAX('Inputs and assumptions'!$D$8:$Q$8)-PERCENTILE('Inputs and assumptions'!$D$8:$Q$8,'Inputs and assumptions'!$C$55))*'Inputs and assumptions'!$C$54)*P6 -> 4658.95925 | Q8: =('Inputs and assumptions'!$C$53+MAX('Inputs and assumptions'!Q8-PERCENTILE('Inputs and assumptions'!$D$8:$Q$8,'Inputs and assumptions'!$C$55),0)/(MAX('Inputs and assumptions'!$D$8:$Q$8)-PERCENTILE('Inputs and assumptions'!$D$8:$Q$8,'Inputs and assumptions'!$C$55))*'Inputs and assumptions'!$C$54)*Q6 -> 3952.9
A9: Q_base | B9: Baseline quantity of taxis demanded per shift | C9: Kms occupied | D9: =D7*'Inputs and assumptions'!D7/D13/$B$20*D5 -> 382739.7555 | E9: =E7*'Inputs and assumptions'!E7/E13/$B$20*E5 -> 380048.0455 | F9: =F7*'Inputs and assumptions'!F7/F13/$B$20*F5 -> 390806.1745 | G9: =G7*'Inputs and assumptions'!G7/G13/$B$20*G5 -> 414423.8675 | H9: =H7*'Inputs and assumptions'!H7/H13/$B$20*H5 -> 419437.8275 | I9: =I7*'Inputs and assumptions'!I7/I13/$B$20*I5 -> 297354.3407 | J9: =J7*'Inputs and assumptions'!J7/J13/$B$20*J5 -> 271090.1266 | K9: =K7*'Inputs and assumptions'!K7/K13/$B$20*K5 -> 315369.7508 | L9: =L7*'Inputs and assumptions'!L7/L13/$B$20*L5 -> 385536.3022 | M9: =M7*'Inputs and assumptions'!M7/M13/$B$20*M5 -> 441309.3583 | N9: =N7*'Inputs and assumptions'!N7/N13/$B$20*N5 -> 517803.1904 | O9: =O7*'Inputs and assumptions'!O7/O13/$B$20*O5 -> 682821.5097 | P9: =P7*'Inputs and assumptions'!P7/P13/$B$20*P5 -> 631096.147 | Q9: =Q7*'Inputs and assumptions'!Q7/Q13/$B$20*Q5 -> 274637.668
B10: Demand intercept with y axis | C10: Kms occupied | D10: =D9+D11*D13+'Inputs and assumptions'!D10*D12 -> 750798.8275 | E10: =E9+E11*E13+'Inputs and assumptions'!E10*E12 -> 745518.6528 | F10: =F9+F11*F13+'Inputs and assumptions'!F10*F12 -> 766622.2632 | G10: =G9+G11*G13+'Inputs and assumptions'!G10*G12 -> 812951.7493 | H10: =H9+H11*H13+'Inputs and assumptions'!H10*H12 -> 821053.8156 | I10: =I9+I11*I13+'Inputs and assumptions'!I10*I12 -> 582074.148 | J10: =J9+J11*J13+'Inputs and assumptions'!J10*J12 -> 530558.7757 | K10: =K9+K11*K13+'Inputs and assumptions'!K10*K12 -> 612250.9692 | L10: =L9+L11*L13+'Inputs and assumptions'!L10*L12 -> 748470.5623 | M10: =M9+M11*M13+'Inputs and assumptions'!M10*M12 -> 856746.9825 | N10: =N9+N11*N13+'Inputs and assumptions'!N10*N12 -> 1005250.2 | O10: =O9+O11*O13+'Inputs and assumptions'!O10*O12 -> 1352291.569 | P10: =P9+P11*P13+'Inputs and assumptions'!P10*P12 -> 1247347.734 | Q10: =Q9+Q11*Q13+'Inputs and assumptions'!Q10*Q12 -> 549091.2559
B11: Impact of price on demand kilometres | C11: Change in Q per extra dollar | D11: ='Inputs and assumptions'!D$5*D9/D13 -> 109168.4479 | E11: ='Inputs and assumptions'!E$5*E9/E13 -> 108400.6944 | F11: ='Inputs and assumptions'!F$5*F9/F13 -> 111469.2239 | G11: ='Inputs and assumptions'!G$5*G9/G13 -> 118205.673 | H11: ='Inputs and assumptions'!H$5*H9/H13 -> 119635.7994 | I11: ='Inputs and assumptions'!I$5*I9/I13 -> 84814.05809 | J11: ='Inputs and assumptions'!J$5*J9/J13 -> 77322.74462 | K11: ='Inputs and assumptions'!K$5*K9/K13 -> 88409.45728 | L11: ='Inputs and assumptions'!L$5*L9/L13 -> 108079.6594 | M11: ='Inputs and assumptions'!M$5*M9/M13 -> 123714.8483 | N11: ='Inputs and assumptions'!N$5*N9/N13 -> 145158.8141 | O11: ='Inputs and assumptions'!O$5*O9/O13 -> 188190.9948 | P11: ='Inputs and assumptions'!P$5*P9/P13 -> 170109.771 | Q11: ='Inputs and assumptions'!Q$5*Q9/Q13 -> 76990.79293
B12: Impact of waiting time on demand kilometres | C12: Change in Q per extra minute | D12: =('Inputs and assumptions'!$C$52/'Inputs and assumptions'!$C$42)/60*D11 -> 7797.74628 | E12: =('Inputs and assumptions'!$C$52/'Inputs and assumptions'!$C$42)/60*E11 -> 7742.90674 | F12: =('Inputs and assumptions'!$C$52/'Inputs and assumptions'!$C$42)/60*F11 -> 7962.087422 | G12: =('Inputs and assumptions'!$C$52/'Inputs and assumptions'!$C$42)/60*G11 -> 8443.262358 | H12: =('Inputs and assumptions'!$C$52/'Inputs and assumptions'!$C$42)/60*H11 -> 8545.414244 | I12: =('Inputs and assumptions'!$C$52/'Inputs and assumptions'!$C$42)/60*I11 -> 6058.147007 | J12: =('Inputs and assumptions'!$C$52/'Inputs and assumptions'!$C$42)/60*J11 -> 5523.053187 | K12: =('Inputs and assumptions'!$C$52/'Inputs and assumptions'!$C$42)/60*K11 -> 6314.961234 | L12: =('Inputs and assumptions'!$C$52/'Inputs and assumptions'!$C$42)/60*L11 -> 7719.97567 | M12: =('Inputs and assumptions'!$C$52/'Inputs and assumptions'!$C$42)/60*M11 -> 8836.774876 | N12: =('Inputs and assumptions'!$C$52/'Inputs and assumptions'!$C$42)/60*N11 -> 10368.48672 | O12: =('Inputs and assumptions'!$C$52/'Inputs and assumptions'!$C$42)/60*O11 -> 13442.21391 | P12: =('Inputs and assumptions'!$C$52/'Inputs and assumptions'!$C$42)/60*P11 -> 12150.69793 | Q12: =('Inputs and assumptions'!$C$52/'Inputs and assumptions'!$C$42)/60*Q11 -> 5499.342352
A13: P | B13: Price per kilometre of demand (excluding GST) | C13: $/km occupied | D13: =(('Inputs and assumptions'!$C$13+'Inputs and assumptions'!$C$45*'Inputs and assumptions'!$C$17)/'Inputs and assumptions'!$C$42+('Inputs and assumptions'!$C$14*'Inputs and assumptions'!D9+'Inputs and assumptions'!$C$15*(1-'Inputs and assumptions'!D9))*'Inputs and assumptions'!$C$50/'Inputs and assumptions'!$C$42+('Inputs and assumptions'!$C$49/60*'Inputs and assumptions'!$C$16)/'Inputs and assumptions'!$C$42)/$B$20 -> 2.804764657 | E13: =(('Inputs and assumptions'!$C$13+'Inputs and assumptions'!$C$45*'Inputs and assumptions'!$C$17)/'Inputs and assumptions'!$C$42+('Inputs and assumptions'!$C$14*'Inputs and assumptions'!E9+'Inputs and assumptions'!$C$15*(1-'Inputs and assumptions'!E9))*'Inputs and assumptions'!$C$50/'Inputs and assumptions'!$C$42+('Inputs and assumptions'!$C$49/60*'Inputs and assumptions'!$C$16)/'Inputs and assumptions'!$C$42)/$B$20 -> 2.804764657 | F13: =(('Inputs and assumptions'!$C$13+'Inputs and assumptions'!$C$45*'Inputs and assumptions'!$C$17)/'Inputs and assumptions'!$C$42+('Inputs and assumptions'!$C$14*'Inputs and assumptions'!F9+'Inputs and assumptions'!$C$15*(1-'Inputs and assumptions'!F9))*'Inputs and assumptions'!$C$50/'Inputs and assumptions'!$C$42+('Inputs and assumptions'!$C$49/60*'Inputs and assumptions'!$C$16)/'Inputs and assumptions'!$C$42)/$B$20 -> 2.804764657 | G13: =(('Inputs and assumptions'!$C$13+'Inputs and assumptions'!$C$45*'Inputs and assumptions'!$C$17)/'Inputs and assumptions'!$C$42+('Inputs and assumptions'!$C$14*'Inputs and assumptions'!G9+'Inputs and assumptions'!$C$15*(1-'Inputs and assumptions'!G9))*'Inputs and assumptions'!$C$50/'Inputs and assumptions'!$C$42+('Inputs and assumptions'!$C$49/60*'Inputs and assumptions'!$C$16)/'Inputs and assumptions'!$C$42)/$B$20 -> 2.804764657 | H13: =(('Inputs and assumptions'!$C$13+'Inputs and assumptions'!$C$45*'Inputs and assumptions'!$C$17)/'Inputs and assumptions'!$C$42+('Inputs and assumptions'!$C$14*'Inputs and assumptions'!H9+'Inputs and assumptions'!$C$15*(1-'Inputs and assumptions'!H9))*'Inputs and assumptions'!$C$50/'Inputs and assumptions'!$C$42+('Inputs and assumptions'!$C$49/60*'Inputs and assumptions'!$C$16)/'Inputs and assumptions'!$C$42)/$B$20 -> 2.804764657 | I13: =(('Inputs and assumptions'!$C$13+'Inputs and assumptions'!$C$45*'Inputs and assumptions'!$C$17)/'Inputs and assumptions'!$C$42+('Inputs and assumptions'!$C$14*'Inputs and assumptions'!I9+'Inputs and assumptions'!$C$15*(1-'Inputs and assumptions'!I9))*'Inputs and assumptions'!$C$50/'Inputs and assumptions'!$C$42+('Inputs and assumptions'!$C$49/60*'Inputs and assumptions'!$C$16)/'Inputs and assumptions'!$C$42)/$B$20 -> 2.804764657 | J13: =(('Inputs and assumptions'!$C$13+'Inputs and assumptions'!$C$45*'Inputs and assumptions'!$C$17)/'Inputs and assumptions'!$C$42+('Inputs and assumptions'!$C$14*'Inputs and assumptions'!J9+'Inputs and assumptions'!$C$15*(1-'Inputs and assumptions'!J9))*'Inputs and assumptions'!$C$50/'Inputs and assumptions'!$C$42+('Inputs and assumptions'!$C$49/60*'Inputs and assumptions'!$C$16)/'Inputs and assumptions'!$C$42)/$B$20 -> 2.804764657 | K13: =(('Inputs and assumptions'!$C$13+'Inputs and assumptions'!$C$45*'Inputs and assumptions'!$C$17)/'Inputs and assumptions'!$C$42+('Inputs and assumptions'!$C$14*'Inputs and assumptions'!K9+'Inputs and assumptions'!$C$15*(1-'Inputs and assumptions'!K9))*'Inputs and assumptions'!$C$50/'Inputs and assumptions'!$C$42+('Inputs and assumptions'!$C$49/60*'Inputs and assumptions'!$C$16)/'Inputs and assumptions'!$C$42)/$B$20 -> 2.853719595 | L13: =(('Inputs and assumptions'!$C$13+'Inputs and assumptions'!$C$45*'Inputs and assumptions'!$C$17)/'Inputs and assumptions'!$C$42+('Inputs and assumptions'!$C$14*'Inputs and assumptions'!L9+'Inputs and assumptions'!$C$15*(1-'Inputs and assumptions'!L9))*'Inputs and assumptions'!$C$50/'Inputs and assumptions'!$C$42+('Inputs and assumptions'!$C$49/60*'Inputs and assumptions'!$C$16)/'Inputs and assumptions'!$C$42)/$B$20 -> 2.853719595 | M13: =(('Inputs and assumptions'!$C$13+'Inputs and assumptions'!$C$45*'Inputs and assumptions'!$C$17)/'Inputs and assumptions'!$C$42+('Inputs and assumptions'!$C$14*'Inputs and assumptions'!M9+'Inputs and assumptions'!$C$15*(1-'Inputs and assumptions'!M9))*'Inputs and assumptions'!$C$50/'Inputs and assumptions'!$C$42+('Inputs and assumptions'!$C$49/60*'Inputs and assumptions'!$C$16)/'Inputs and assumptions'!$C$42)/$B$20 -> 2.853719595 | N13: =(('Inputs and assumptions'!$C$13+'Inputs and assumptions'!$C$45*'Inputs and assumptions'!$C$17)/'Inputs and assumptions'!$C$42+('Inputs and assumptions'!$C$14*'Inputs and assumptions'!N9+'Inputs and assumptions'!$C$15*(1-'Inputs and assumptions'!N9))*'Inputs and assumptions'!$C$50/'Inputs and assumptions'!$C$42+('Inputs and assumptions'!$C$49/60*'Inputs and assumptions'!$C$16)/'Inputs and assumptions'!$C$42)/$B$20 -> 2.853719595 | O13: =(('Inputs and assumptions'!$C$13+'Inputs and assumptions'!$C$45*'Inputs and assumptions'!$C$17)/'Inputs and assumptions'!$C$42+('Inputs and assumptions'!$C$14*'Inputs and assumptions'!O9+'Inputs and assumptions'!$C$15*(1-'Inputs and assumptions'!O9))*'Inputs and assumptions'!$C$50/'Inputs and assumptions'!$C$42+('Inputs and assumptions'!$C$49/60*'Inputs and assumptions'!$C$16)/'Inputs and assumptions'!$C$42)/$B$20 -> 2.902674533 | P13: =(('Inputs and assumptions'!$C$13+'Inputs and assumptions'!$C$45*'Inputs and assumptions'!$C$17)/'Inputs and assumptions'!$C$42+('Inputs and assumptions'!$C$14*'Inputs and assumptions'!P9+'Inputs and assumptions'!$C$15*(1-'Inputs and assumptions'!P9))*'Inputs and assumptions'!$C$50/'Inputs and assumptions'!$C$42+('Inputs and assumptions'!$C$49/60*'Inputs and assumptions'!$C$16)/'Inputs and assumptions'!$C$42)/$B$20 -> 2.967947783 | Q13: =(('Inputs and assumptions'!$C$13+'Inputs and assumptions'!$C$45*'Inputs and assumptions'!$C$17)/'Inputs and assumptions'!$C$42+('Inputs and assumptions'!$C$14*'Inputs and assumptions'!Q9+'Inputs and assumptions'!$C$15*(1-'Inputs and assumptions'!Q9))*'Inputs and assumptions'!$C$50/'Inputs and assumptions'!$C$42+('Inputs and assumptions'!$C$49/60*'Inputs and assumptions'!$C$16)/'Inputs and assumptions'!$C$42)/$B$20 -> 2.853719595
A14: c | B14: Variable cost | C14: $/km occupied | D14: =('Inputs and assumptions'!C24+'Inputs and assumptions'!C26)*'Inputs and assumptions'!C51*(1+'Inputs and assumptions'!$C$18) -> 0.4828223323 | E14: =D14 -> 0.4828223323 | F14: =E14 -> 0.4828223323 | G14: 0.4828223323 | H14: 0.4828223323 | I14: 0.4828223323 | J14: 0.4828223323 | K14: 0.4828223323 | L14: 0.4828223323 | M14: 0.4828223323 | N14: 0.4828223323 | O14: 0.4828223323 | P14: 0.4828223323 | Q14: 0.4828223323
B15: Fixed component of shift costs | C15: $/taxi/shift | D15: =(('Inputs and assumptions'!$C$22+IF('Inputs and assumptions'!D6="Yes",'Inputs and assumptions'!$C$23,0))*'Inputs and assumptions'!$C$41+'Inputs and assumptions'!$C$27+'Inputs and assumptions'!$C$25/'Inputs and assumptions'!$C$44)*(1+'Inputs and assumptions'!$C$18)-IF('Inputs and assumptions'!$C$59="Flat",0,'Inputs and assumptions'!$C$58) -> 146.3905063 | E15: =(('Inputs and assumptions'!$C$22+IF('Inputs and assumptions'!E6="Yes",'Inputs and assumptions'!$C$23,0))*'Inputs and assumptions'!$C$41+'Inputs and assumptions'!$C$27+'Inputs and assumptions'!$C$25/'Inputs and assumptions'!$C$44)*(1+'Inputs and assumptions'!$C$18)-IF('Inputs and assumptions'!$C$59="Flat",0,'Inputs and assumptions'!$C$58) -> 146.3905063 | F15: =(('Inputs and assumptions'!$C$22+IF('Inputs and assumptions'!F6="Yes",'Inputs and assumptions'!$C$23,0))*'Inputs and assumptions'!$C$41+'Inputs and assumptions'!$C$27+'Inputs and assumptions'!$C$25/'Inputs and assumptions'!$C$44)*(1+'Inputs and assumptions'!$C$18)-IF('Inputs and assumptions'!$C$59="Flat",0,'Inputs and assumptions'!$C$58) -> 146.3905063 | G15: =(('Inputs and assumptions'!$C$22+IF('Inputs and assumptions'!G6="Yes",'Inputs and assumptions'!$C$23,0))*'Inputs and assumptions'!$C$41+'Inputs and assumptions'!$C$27+'Inputs and assumptions'!$C$25/'Inputs and assumptions'!$C$44)*(1+'Inputs and assumptions'!$C$18)-IF('Inputs and assumptions'!$C$59="Flat",0,'Inputs and assumptions'!$C$58) -> 146.3905063 | H15: =(('Inputs and assumptions'!$C$22+IF('Inputs and assumptions'!H6="Yes",'Inputs and assumptions'!$C$23,0))*'Inputs and assumptions'!$C$41+'Inputs and assumptions'!$C$27+'Inputs and assumptions'!$C$25/'Inputs and assumptions'!$C$44)*(1+'Inputs and assumptions'!$C$18)-IF('Inputs and assumptions'!$C$59="Flat",0,'Inputs and assumptions'!$C$58) -> 146.3905063 | I15: =(('Inputs and assumptions'!$C$22+IF('Inputs and assumptions'!I6="Yes",'Inputs and assumptions'!$C$23,0))*'Inputs and assumptions'!$C$41+'Inputs and assumptions'!$C$27+'Inputs and assumptions'!$C$25/'Inputs and assumptions'!$C$44)*(1+'Inputs and assumptions'!$C$18)-IF('Inputs and assumptions'!$C$59="Flat",0,'Inputs and assumptions'!$C$58) -> 167.1305063 | J15: =(('Inputs and assumptions'!$C$22+IF('Inputs and assumptions'!J6="Yes",'Inputs and assumptions'!$C$23,0))*'Inputs and assumptions'!$C$41+'Inputs and assumptions'!$C$27+'Inputs and assumptions'!$C$25/'Inputs and assumptions'!$C$44)*(1+'Inputs and assumptions'!$C$18)-IF('Inputs and assumptions'!$C$59="Flat",0,'Inputs and assumptions'!$C$58) -> 167.1305063 | K15: =(('Inputs and assumptions'!$C$22+IF('Inputs and assumptions'!K6="Yes",'Inputs and assumptions'!$C$23,0))*'Inputs and assumptions'!$C$41+'Inputs and assumptions'!$C$27+'Inputs and assumptions'!$C$25/'Inputs and assumptions'!$C$44)*(1+'Inputs and assumptions'!$C$18)-IF('Inputs and assumptions'!$C$59="Flat",0,'Inputs and assumptions'!$C$58) -> 146.3905063 | L15: =(('Inputs and assumptions'!$C$22+IF('Inputs and assumptions'!L6="Yes",'Inputs and assumptions'!$C$23,0))*'Inputs and assumptions'!$C$41+'Inputs and assumptions'!$C$27+'Inputs and assumptions'!$C$25/'Inputs and assumptions'!$C$44)*(1+'Inputs and assumptions'!$C$18)-IF('Inputs and assumptions'!$C$59="Flat",0,'Inputs and assumptions'!$C$58) -> 146.3905063 | M15: =(('Inputs and assumptions'!$C$22+IF('Inputs and assumptions'!M6="Yes",'Inputs and assumptions'!$C$23,0))*'Inputs and assumptions'!$C$41+'Inputs and assumptions'!$C$27+'Inputs and assumptions'!$C$25/'Inputs and assumptions'!$C$44)*(1+'Inputs and assumptions'!$C$18)-IF('Inputs and assumptions'!$C$59="Flat",0,'Inputs and assumptions'!$C$58) -> 146.3905063 | N15: =(('Inputs and assumptions'!$C$22+IF('Inputs and assumptions'!N6="Yes",'Inputs and assumptions'!$C$23,0))*'Inputs and assumptions'!$C$41+'Inputs and assumptions'!$C$27+'Inputs and assumptions'!$C$25/'Inputs and assumptions'!$C$44)*(1+'Inputs and assumptions'!$C$18)-IF('Inputs and assumptions'!$C$59="Flat",0,'Inputs and assumptions'!$C$58) -> 146.3905063 | O15: =(('Inputs and assumptions'!$C$22+IF('Inputs and assumptions'!O6="Yes",'Inputs and assumptions'!$C$23,0))*'Inputs and assumptions'!$C$41+'Inputs and assumptions'!$C$27+'Inputs and assumptions'!$C$25/'Inputs and assumptions'!$C$44)*(1+'Inputs and assumptions'!$C$18)-IF('Inputs and assumptions'!$C$59="Flat",0,'Inputs and assumptions'!$C$58) -> 167.1305063 | P15: =(('Inputs and assumptions'!$C$22+IF('Inputs and assumptions'!P6="Yes",'Inputs and assumptions'!$C$23,0))*'Inputs and assumptions'!$C$41+'Inputs and assumptions'!$C$27+'Inputs and assumptions'!$C$25/'Inputs and assumptions'!$C$44)*(1+'Inputs and assumptions'!$C$18)-IF('Inputs and assumptions'!$C$59="Flat",0,'Inputs and assumptions'!$C$58) -> 167.1305063 | Q15: =(('Inputs and assumptions'!$C$22+IF('Inputs and assumptions'!Q6="Yes",'Inputs and assumptions'!$C$23,0))*'Inputs and assumptions'!$C$41+'Inputs and assumptions'!$C$27+'Inputs and assumptions'!$C$25/'Inputs and assumptions'!$C$44)*(1+'Inputs and assumptions'!$C$18)-IF('Inputs and assumptions'!$C$59="Flat",0,'Inputs and assumptions'!$C$58) -> 167.1305063
B16: Variable component of fixed costs | C16: $/additional taxi per shift | D16: =IF('Inputs and assumptions'!$C$59="Flat",0.0000000000000001,'Inputs and assumptions'!$C$56/5000) -> 0.008 | E16: =IF('Inputs and assumptions'!$C$59="Flat",0.0000000000000001,'Inputs and assumptions'!$C$56/5000) -> 0.008 | F16: =IF('Inputs and assumptions'!$C$59="Flat",0.0000000000000001,'Inputs and assumptions'!$C$56/5000) -> 0.008 | G16: =IF('Inputs and assumptions'!$C$59="Flat",0.0000000000000001,'Inputs and assumptions'!$C$56/5000) -> 0.008 | H16: =IF('Inputs and assumptions'!$C$59="Flat",0.0000000000000001,'Inputs and assumptions'!$C$56/5000) -> 0.008 | I16: =IF('Inputs and assumptions'!$C$59="Flat",0.0000000000000001,'Inputs and assumptions'!$C$56/5000) -> 0.008 | J16: =IF('Inputs and assumptions'!$C$59="Flat",0.0000000000000001,'Inputs and assumptions'!$C$56/5000) -> 0.008 | K16: =IF('Inputs and assumptions'!$C$59="Flat",0.0000000000000001,'Inputs and assumptions'!$C$56/5000) -> 0.008 | L16: =IF('Inputs and assumptions'!$C$59="Flat",0.0000000000000001,'Inputs and assumptions'!$C$56/5000) -> 0.008 | M16: =IF('Inputs and assumptions'!$C$59="Flat",0.0000000000000001,'Inputs and assumptions'!$C$56/5000) -> 0.008 | N16: =IF('Inputs and assumptions'!$C$59="Flat",0.0000000000000001,'Inputs and assumptions'!$C$56/5000) -> 0.008 | O16: =IF('Inputs and assumptions'!$C$59="Flat",0.0000000000000001,'Inputs and assumptions'!$C$56/5000) -> 0.008 | P16: =IF('Inputs and assumptions'!$C$59="Flat",0.0000000000000001,'Inputs and assumptions'!$C$56/5000) -> 0.008 | Q16: =IF('Inputs and assumptions'!$C$59="Flat",0.0000000000000001,'Inputs and assumptions'!$C$56/5000) -> 0.008
B17: Waiting time constant | C17: Unit | D17: ='Inputs and assumptions'!D10*(D7-D9*D18) -> 25045.68164 | E17: =D17 -> 25045.68164 | F17: =E17 -> 25045.68164 | G17: 25045.68164 | H17: 25045.68164 | I17: 25045.68164 | J17: 25045.68164 | K17: 25045.68164 | L17: 25045.68164 | M17: 25045.68164 | N17: 25045.68164 | O17: 25045.68164 | P17: 25045.68164 | Q17: 25045.68164
B18: Constant to link occupied taxi kms to occupied taxis | C18: Unit (inverse of km per shift) | D18: =1/'Inputs and assumptions'!C47/'Inputs and assumptions'!C41 -> 0.00303030303 | E18: =D18 -> 0.00303030303 | F18: =E18 -> 0.00303030303 | G18: 0.00303030303 | H18: 0.00303030303 | I18: 0.00303030303 | J18: 0.00303030303 | K18: 0.00303030303 | L18: 0.00303030303 | M18: 0.00303030303 | N18: 0.00303030303 | O18: 0.00303030303 | P18: 0.00303030303 | Q18: 0.00303030303
A20: GST adjustor | B20: =(1+'Inputs and assumptions'!$C$19) -> 1.1
D23: Monday | E23: Tuesday | F23: Wednesday | G23: Thursday | H23: Friday | I23: Saturday | J23: Sunday | K23: Monday | L23: Tuesday | M23: Wednesday | N23: Thursday | O23: Friday | P23: Saturday | Q23: Sunday
A24: BASELINE MODEL | D24: Day | E24: Day | F24: Day | G24: Day | H24: Day | I24: Day | J24: Day | K24: Night | L24: Night | M24: Night | N24: Night | O24: Night | P24: Night | Q24: Night
A25: Q* | B25: Free entry demand | C25: Occupied kilometres | D25: 392051.8602 | E25: 388977.2107 | F25: 401263.3598 | G25: 428214.7434 | H25: 432021.5025 | I25: 284367.0507 | J25: 253632.7684 | K25: 309925.9621 | L25: 388853.9774 | M25: 451378.3539 | N25: 536986.8023 | O25: 745798.776 | P25: 686406.3587 | Q25: 274856.7235
A26: W* | B26: Free entry waiting time | C26: Minutes, average | D26: 6.739788781 | E26: 6.78078757 | F26: 6.620621073 | G26: 6.300634707 | H26: 6.258567413 | I26: 9.874904756 | J26: 10.87331662 | K26: 7.922329943 | L26: 6.630531666 | M26: 5.920841334 | N26: 5.210099339 | O26: 4.481076203 | P26: 4.614093635 | Q26: 9.914712431
A27: T* | B27: Free entry number of taxis on the road | C27: Taxis on the road | D27: 4904.12913 | E27: 4872.343349 | F27: 4998.930332 | G27: 5272.725098 | H27: 5310.979533 | I27: 3398.014441 | J27: 3071.992013 | K27: 4100.573306 | L27: 4955.672069 | M27: 5597.901745 | N27: 6434.373684 | O27: 7849.208571 | P27: 7508.102881 | Q27: 3359.011928
A28: Q* zero condition | B28: Zero condition to solve for free entry | C28: Occupied kilometres | D28: =D10-D11*D13-D12*D26-D25 -> -5.238689482e-10 | E28: -4.190951586e-09 | F28: -9.895302355e-10 | G28: 2.735760063e-09 | H28: -2.910383046e-09 | I28: 4.48198989e-09 | J28: -1.018634066e-08 | K28: 4.423782229e-09 | L28: -2.223532647e-08 | M28: -3.183959052e-08 | N28: -5.238689482e-09 | O28: 3.899913281e-08 | P28: 7.450580597e-09 | Q28: -1.571606845e-09
A29: W* zero condition | B29: Zero condition to solve for free entry | C29: Minutes, average | D29: =D17/(D27-D25*D18)-D26 -> -4.174183639e-07 | E29: -4.485808551e-07 | F29: -1.274158512e-07 | G29: -1.925451301e-07 | H29: -7.293413251e-08 | I29: -3.283092287e-07 | J29: -6.056293813e-07 | K29: -5.514454866e-07 | L29: -6.744321199e-07 | M29: -3.558186368e-07 | N29: -5.1403509e-08 | O29: -8.056515393e-07 | P29: -8.121536554e-07 | Q29: 6.552980381e-12
A30: T* zero condition | B30: Zero condition to solve for free entry | C30: Taxis on the road | D30: =(-D15+SQRT(D15^2+4*D16*(D13-D14)*D25))/(2*D16)-D27 -> 5.039411917e-06 | E30: 5.415377018e-06 | F30: 1.570565473e-06 | G30: 2.580463843e-06 | H30: 9.941204553e-07 | I30: -9.989253158e-07 | J30: -9.981108633e-07 | K30: 5.290881745e-06 | L30: 8.283294846e-06 | M30: 5.12573115e-06 | N30: 8.862089089e-07 | O30: 1.562584021e-05 | P30: 1.457902272e-05 | Q30: -7.275957614e-12
A31: Qbar | B31: Fixed taxi numbers demand | C31: Occupied kilometres | D31: =((D18*(D10-D11*D13)+D33)-SQRT((D18*(D10-D11*D13)+D33)^2-4*D18*(D33*(D10-D11*D13)-D12*D17)))/(2*D18) -> 383127.6178 | E31: 381179.1436 | F31: 392051.1761 | G31: 417292.406 | H31: 417557.6231 | I31: 291321.2445 | J31: 266707.932 | K31: 307597.1297 | L31: 377236.2071 | M31: 431697.3358 | N31: 506497.9907 | O31: 687101.9636 | P31: 631606.5179 | Q31: 284804.6756
A32: Wbar | B32: Fixed taxi numbers waiting time | C32: Minutes, average | D32: =D17/(D33-D31*D18) -> 7.884253096 | E32: 7.787911551 | F32: 7.777627176 | G32: 7.594250495 | H32: 7.951157033 | I32: 8.726997027 | J32: 8.50593698 | K32: 8.291110102 | L32: 8.135428936 | M32: 8.148013398 | N32: 8.150625987 | O32: 8.847679257 | P32: 9.124109537 | Q32: 8.10577757
A33: Tbar | B33: Fixed taxi numbers | C33: Taxis on the road | D33: =D8 -> 4337.664222 | E33: 4371.057252 | F33: 4408.255288 | G33: 4562.501836 | H33: 4415.267898 | I33: 3752.7 | J33: 3752.7 | K33: 3952.9 | L33: 4221.73389 | M33: 4382.01278 | N33: 4607.696147 | O33: 4912.89 | P33: 4658.95925 | Q33: 3952.9
A34: Q*_flat | B34: Free entry demand, flat cost curve | C34: Occupied kilometres | D34: =(D10-D11*D13+SQRT((D10-D11*D13)^2-4*D12*D17/((D13-D14)/D15-D18)))/2 -> 407230.2457 | E34: 404076.6463 | F34: 416678.1703 | G34: 444320.0672 | H34: 448295.0732 | I34: 297190.3678 | J34: 265772.3927 | K34: 322730.6343 | L34: 403658.3293 | M34: 467760.2236 | N34: 555499.2854 | O34: 767730.2073 | P34: 706064.9014 | Q34: 286248.3151
A35: W*_flat | B35: Free entry waiting time, flat cost curve | C35: Minutes, average | D35: =D17/((D13-D14)/D15-D18)/D34 -> 4.793279501 | E35: 4.830688452 | F35: 4.684594798 | G35: 4.393158294 | H35: 4.354204419 | I35: 7.758198594 | J35: 8.675325039 | K35: 5.894657609 | L35: 4.712863456 | M35: 4.067012313 | N35: 3.424642729 | O35: 2.849542029 | P35: 2.996199524 | Q35: 7.843266258
A36: T*_flat | B36: Free entry number of taxis on the road, flat cost curve | C36: Taxis on the road | D36: =(D13-D14)*D34/D15 -> 6459.197165 | E36: =(E13-E14)*E34/E15 -> 6409.177009 | F36: 6609.05344 | G36: 7047.489594 | H36: 7110.538317 | I36: 4128.86258 | J36: 3692.372991 | K36: 5226.849722 | L36: 6537.530691 | M36: 7575.705977 | N36: 8996.701823 | O36: 11115.82602 | P36: 10498.74074 | Q36: 4060.691023
A37: Q | B37: Equilibrium demand | C37: Occupied kilometres | D37: =IF(D39=D$33,D31,IF('Inputs and assumptions'!$C$59="Flat",D34,D25)) -> 383127.6178 | E37: =IF(E39=E$33,E31,IF('Inputs and assumptions'!$C$59="Flat",E34,E25)) -> 381179.1436 | F37: =IF(F39=F$33,F31,IF('Inputs and assumptions'!$C$59="Flat",F34,F25)) -> 392051.1761 | G37: =IF(G39=G$33,G31,IF('Inputs and assumptions'!$C$59="Flat",G34,G25)) -> 417292.406 | H37: =IF(H39=H$33,H31,IF('Inputs and assumptions'!$C$59="Flat",H34,H25)) -> 417557.6231 | I37: =IF(I39=I$33,I31,IF('Inputs and assumptions'!$C$59="Flat",I34,I25)) -> 284367.0507 | J37: =IF(J39=J$33,J31,IF('Inputs and assumptions'!$C$59="Flat",J34,J25)) -> 253632.7684 | K37: =IF(K39=K$33,K31,IF('Inputs and assumptions'!$C$59="Flat",K34,K25)) -> 307597.1297 | L37: =IF(L39=L$33,L31,IF('Inputs and assumptions'!$C$59="Flat",L34,L25)) -> 377236.2071 | M37: =IF(M39=M$33,M31,IF('Inputs and assumptions'!$C$59="Flat",M34,M25)) -> 431697.3358 | N37: =IF(N39=N$33,N31,IF('Inputs and assumptions'!$C$59="Flat",N34,N25)) -> 506497.9907 | O37: =IF(O39=O$33,O31,IF('Inputs and assumptions'!$C$59="Flat",O34,O25)) -> 687101.9636 | P37: =IF(P39=P$33,P31,IF('Inputs and assumptions'!$C$59="Flat",P34,P25)) -> 631606.5179 | Q37: =IF(Q39=Q$33,Q31,IF('Inputs and assumptions'!$C$59="Flat",Q34,Q25)) -> 274856.7235
A38: W | B38: Equilibrium waiting time | C38: Minutes, average | D38: =IF(D39=D$33,D32,IF('Inputs and assumptions'!$C$59="Flat",D35,D26)) -> 7.884253096 | E38: =IF(E39=E$33,E32,IF('Inputs and assumptions'!$C$59="Flat",E35,E26)) -> 7.787911551 | F38: =IF(F39=F$33,F32,IF('Inputs and assumptions'!$C$59="Flat",F35,F26)) -> 7.777627176 | G38: =IF(G39=G$33,G32,IF('Inputs and assumptions'!$C$59="Flat",G35,G26)) -> 7.594250495 | H38: =IF(H39=H$33,H32,IF('Inputs and assumptions'!$C$59="Flat",H35,H26)) -> 7.951157033 | I38: =IF(I39=I$33,I32,IF('Inputs and assumptions'!$C$59="Flat",I35,I26)) -> 9.874904756 | J38: =IF(J39=J$33,J32,IF('Inputs and assumptions'!$C$59="Flat",J35,J26)) -> 10.87331662 | K38: =IF(K39=K$33,K32,IF('Inputs and assumptions'!$C$59="Flat",K35,K26)) -> 8.291110102 | L38: =IF(L39=L$33,L32,IF('Inputs and assumptions'!$C$59="Flat",L35,L26)) -> 8.135428936 | M38: =IF(M39=M$33,M32,IF('Inputs and assumptions'!$C$59="Flat",M35,M26)) -> 8.148013398 | N38: =IF(N39=N$33,N32,IF('Inputs and assumptions'!$C$59="Flat",N35,N26)) -> 8.150625987 | O38: =IF(O39=O$33,O32,IF('Inputs and assumptions'!$C$59="Flat",O35,O26)) -> 8.847679257 | P38: =IF(P39=P$33,P32,IF('Inputs and assumptions'!$C$59="Flat",P35,P26)) -> 9.124109537 | Q38: =IF(Q39=Q$33,Q32,IF('Inputs and assumptions'!$C$59="Flat",Q35,Q26)) -> 9.914712431
A39: T | B39: Equilibrium number of taxis on the road | C39: Taxis on the road | D39: =IF('Inputs and assumptions'!$C$59="Flat",MIN(D36,D33),MIN(D27,D33)) -> 4337.664222 | E39: =IF('Inputs and assumptions'!$C$59="Flat",MIN(E36,E33),MIN(E27,E33)) -> 4371.057252 | F39: =IF('Inputs and assumptions'!$C$59="Flat",MIN(F36,F33),MIN(F27,F33)) -> 4408.255288 | G39: =IF('Inputs and assumptions'!$C$59="Flat",MIN(G36,G33),MIN(G27,G33)) -> 4562.501836 | H39: =IF('Inputs and assumptions'!$C$59="Flat",MIN(H36,H33),MIN(H27,H33)) -> 4415.267898 | I39: =IF('Inputs and assumptions'!$C$59="Flat",MIN(I36,I33),MIN(I27,I33)) -> 3398.014441 | J39: =IF('Inputs and assumptions'!$C$59="Flat",MIN(J36,J33),MIN(J27,J33)) -> 3071.992013 | K39: =IF('Inputs and assumptions'!$C$59="Flat",MIN(K36,K33),MIN(K27,K33)) -> 3952.9 | L39: =IF('Inputs and assumptions'!$C$59="Flat",MIN(L36,L33),MIN(L27,L33)) -> 4221.73389 | M39: =IF('Inputs and assumptions'!$C$59="Flat",MIN(M36,M33),MIN(M27,M33)) -> 4382.01278 | N39: =IF('Inputs and assumptions'!$C$59="Flat",MIN(N36,N33),MIN(N27,N33)) -> 4607.696147 | O39: =IF('Inputs and assumptions'!$C$59="Flat",MIN(O36,O33),MIN(O27,O33)) -> 4912.89 | P39: =IF('Inputs and assumptions'!$C$59="Flat",MIN(P36,P33),MIN(P27,P33)) -> 4658.95925 | Q39: =IF('Inputs and assumptions'!$C$59="Flat",MIN(Q36,Q33),MIN(Q27,Q33)) -> 3359.011928
A43: MODEL OUTPUTS
D44: Monday | E44: Tuesday | F44: Wednesday | G44: Thursday | H44: Friday | I44: Saturday | J44: Sunday | K44: Monday | L44: Tuesday | M44: Wednesday | N44: Thursday | O44: Friday | P44: Saturday | Q44: Sunday
D45: Day | E45: Day | F45: Day | G45: Day | H45: Day | I45: Day | J45: Day | K45: Night | L45: Night | M45: Night | N45: Night | O45: Night | P45: Night | Q45: Night
A46: Revenue per taxi (excluding GST) | D46: =D37*D13/D39 -> 247.7330533 | E46: =E37*E13/E39 -> 244.5902052 | F46: =F37*F13/F39 -> 249.4436485 | G46: 256.5274567 | H46: 265.2502386 | I46: 234.7202072 | J46: =J37*J13/J39 -> 231.5696856 | K46: 222.0637902 | L46: 254.9962608 | M46: 281.1363654 | N46: 313.6932634 | O46: 405.9592971 | P46: 402.3592102 | Q46: 233.5103401
A47: Cost per taxi | D47: =D15+D16*D39+D14*D37/D39 -> 223.7374839 | E47: =E15+E16*E39+E14*E37/E39 -> 223.4636069 | F47: 224.5966805 | G47: 227.0500852 | H47: 227.373785 | I47: 234.7202073 | J47: 231.5696857 | K47: 215.5847968 | L47: 223.3073301 | M47: 229.0122194 | N47: 236.3260052 | O47: 273.9597001 | P47: 269.857514 | Q47: =Q15+Q16*Q39+Q14*Q37/Q39 -> 233.5103401
A48: Surplus per taxi for average shift | D48: =D46-D47 -> 23.99556937 | E48: 21.12659829 | F48: =F46-F47 -> 24.84696801 | G48: 29.47737147 | H48: 37.87645369 | I48: -6.511461947e-08 | J48: -7.027151128e-08 | K48: 6.478993393 | L48: 31.68893071 | M48: 52.12414604 | N48: 77.36725817 | O48: 131.999597 | P48: 132.5016962 | Q48: =Q46-Q47 -> -4.831690603e-13
A49: Share of taxis on the road | D49: =D39/D6*100 -> 80.91147588 | E49: =E39/E6*100 -> 81.53436395 | F49: =F39/F6*100 -> 82.22822772 | G49: 85.10542503 | H49: 82.35903559 | I49: 63.38396643 | J49: 57.30259305 | K49: 70 | L49: 74.76064972 | M49: 77.5989513 | N49: 81.59546923 | O49: 87 | P49: 82.5032628 | Q49: 59.4831225
A50: Free market taxis on the road as a proportion of maximum | D50: =D27/D33*100 -> 113.0592153 | E50: =E27/E33*100 -> 111.4683032 | F50: =F27/F33*100 -> 113.3992931 | G50: 115.566531 | H50: 120.2866883 | I50: 90.54852348 | J50: 81.86084721 | K50: 103.735822 | L50: 117.384757 | M50: 127.7472711 | N50: 139.6440537 | O50: 159.7676433 | P50: 161.1540792 | Q50: 84.97588929
A51: Average surplus accruing to shift (adjusted for distribution) | D51: =D48*D52+_xlfn.NORM.DIST(-1*(D50-100)/'Inputs and assumptions'!$C$57,0,1,FALSE)*'Inputs and assumptions'!$C$57/$C$52 -> 32.73666329 | E51: =E48*E52+_xlfn.NORM.DIST(-1*(E50-100)/'Inputs and assumptions'!$C$57,0,1,FALSE)*'Inputs and assumptions'!$C$57/$C$52 -> 30.76089208 | F51: =F48*F52+_xlfn.NORM.DIST(-1*(F50-100)/'Inputs and assumptions'!$C$57,0,1,FALSE)*'Inputs and assumptions'!$C$57/$C$52 -> 33.33473203 | G51: =G48*G52+_xlfn.NORM.DIST(-1*(G50-100)/'Inputs and assumptions'!$C$57,0,1,FALSE)*'Inputs and assumptions'!$C$57/$C$52 -> 36.68013798 | H51: =H48*H52+_xlfn.NORM.DIST(-1*(H50-100)/'Inputs and assumptions'!$C$57,0,1,FALSE)*'Inputs and assumptions'!$C$57/$C$52 -> 43.135669 | I51: =I48*I52+_xlfn.NORM.DIST(-1*(I50-100)/'Inputs and assumptions'!$C$57,0,1,FALSE)*'Inputs and assumptions'!$C$57/$C$52 -> 17.03254878 | J51: =J48*J52+_xlfn.NORM.DIST(-1*(J50-100)/'Inputs and assumptions'!$C$57,0,1,FALSE)*'Inputs and assumptions'!$C$57/$C$52 -> 14.07081254 | K51: =K48*K52+_xlfn.NORM.DIST(-1*(K50-100)/'Inputs and assumptions'!$C$57,0,1,FALSE)*'Inputs and assumptions'!$C$57/$C$52 -> 21.71059019 | L51: =L48*L52+_xlfn.NORM.DIST(-1*(L50-100)/'Inputs and assumptions'!$C$57,0,1,FALSE)*'Inputs and assumptions'!$C$57/$C$52 -> 38.33697792 | M51: =M48*M52+_xlfn.NORM.DIST(-1*(M50-100)/'Inputs and assumptions'!$C$57,0,1,FALSE)*'Inputs and assumptions'!$C$57/$C$52 -> 55.04254516 | N51: =N48*N52+_xlfn.NORM.DIST(-1*(N50-100)/'Inputs and assumptions'!$C$57,0,1,FALSE)*'Inputs and assumptions'!$C$57/$C$52 -> 78.20411785 | O51: =O48*O52+_xlfn.NORM.DIST(-1*(O50-100)/'Inputs and assumptions'!$C$57,0,1,FALSE)*'Inputs and assumptions'!$C$57/$C$52 -> 131.9371445 | P51: =P48*P52+_xlfn.NORM.DIST(-1*(P50-100)/'Inputs and assumptions'!$C$57,0,1,FALSE)*'Inputs and assumptions'!$C$57/$C$52 -> 132.4612101 | Q51: =Q48*Q52+_xlfn.NORM.DIST(-1*(Q50-100)/'Inputs and assumptions'!$C$57,0,1,FALSE)*'Inputs and assumptions'!$C$57/$C$52 -> 15.2782419
A52: Percentage of shifts where surplus accrues | C52: =STDEV(D50:Q50)/STDEV(D48:Q48) -> 0.5463702557 | D52: =(1-_xlfn.NORM.DIST(-1*(D50-100)/'Inputs and assumptions'!$C$57,0,1,TRUE)) -> 0.698944162 | E52: =(1-_xlfn.NORM.DIST(-1*(E50-100)/'Inputs and assumptions'!$C$57,0,1,TRUE)) -> 0.6764705607 | F52: =(1-_xlfn.NORM.DIST(-1*(F50-100)/'Inputs and assumptions'!$C$57,0,1,TRUE)) -> 0.7036554438 | G52: =(1-_xlfn.NORM.DIST(-1*(G50-100)/'Inputs and assumptions'!$C$57,0,1,TRUE)) -> 0.732853602 | H52: =(1-_xlfn.NORM.DIST(-1*(H50-100)/'Inputs and assumptions'!$C$57,0,1,TRUE)) -> 0.7910041588 | I52: =(1-_xlfn.NORM.DIST(-1*(I50-100)/'Inputs and assumptions'!$C$57,0,1,TRUE)) -> 0.352962855 | J52: =(1-_xlfn.NORM.DIST(-1*(J50-100)/'Inputs and assumptions'!$C$57,0,1,TRUE)) -> 0.2344795194 | K52: =(1-_xlfn.NORM.DIST(-1*(K50-100)/'Inputs and assumptions'!$C$57,0,1,TRUE)) -> 0.5592808358 | L52: =(1-_xlfn.NORM.DIST(-1*(L50-100)/'Inputs and assumptions'!$C$57,0,1,TRUE)) -> 0.7561764169 | M52: =(1-_xlfn.NORM.DIST(-1*(M50-100)/'Inputs and assumptions'!$C$57,0,1,TRUE)) -> 0.8660174863 | N52: =(1-_xlfn.NORM.DIST(-1*(N50-100)/'Inputs and assumptions'!$C$57,0,1,TRUE)) -> 0.9432572588 | O52: =(1-_xlfn.NORM.DIST(-1*(O50-100)/'Inputs and assumptions'!$C$57,0,1,TRUE)) -> 0.99148636 | P52: =(1-_xlfn.NORM.DIST(-1*(P50-100)/'Inputs and assumptions'!$C$57,0,1,TRUE)) -> 0.9926861813 | Q52: =(1-_xlfn.NORM.DIST(-1*(Q50-100)/'Inputs and assumptions'!$C$57,0,1,TRUE)) -> 0.2743160266
A53: Surplus (basic) | C53: $/taxi | D53: =SUMPRODUCT(D49:Q49,D48:Q48)*365/7/100 -> 24471.33836
A54: Surplus accounting for shift variation | C54: $/taxi | D54: =SUMPRODUCT(D49:Q49,D51:Q51)*365/7/100 -> 28580.57838
A55: Occupancy rate of taxis (time) | D55: =D37*D18/D39 -> 0.2676539082 | E55: 0.2642583356 | F55: 0.2695020568 | G55: 0.2771554923 | H55: 0.2865796957 | I55: 0.2535946655 | J55: 0.2501908023 | K55: 0.2358047292 | L55: 0.2707750065 | M55: 0.2985326174 | N55: 0.3331040822 | O55: 0.4238090335 | P55: 0.4108125962 | Q55: 0.2479595726
A56: Revenue per taxi (including GST) | D56: =D46*$B$20 -> 272.5063586 | E56: =E46*$B$20 -> 269.0492257 | F56: 274.3880133 | G56: 282.1802024 | H56: 291.7752625 | I56: 258.1922279 | J56: 254.7266541 | K56: 244.2701692 | L56: 280.4958869 | M56: 309.250002 | N56: 345.0625897 | O56: 446.5552268 | P56: 442.5951312 | Q56: 256.8613741
A57: Occupied kms per shift | D57: =D46/D13 -> 88.32578969 | E57: =E46/E13 -> 87.20525073 | F57: 88.93567873 | G57: 91.46131245 | H57: 94.57129957 | I57: 83.68623962 | J57: 82.56296477 | K57: 77.81556065 | L57: 89.35575215 | M57: 98.51576375 | N57: 109.9243471 | O57: 139.856981 | P57: 135.5681567 | Q57: 81.82665897
A59: MODEL VALIDATION
A61: Model validation
B62: Model | C62: Data | D62: Difference (per cent)
A63: Average occupancy | B63: =SUMPRODUCT(D55:Q55,D49:Q49)/SUM(D49:Q49) -> 0.2960993577 | C63: 0.3 | D63: =B63/C63*100-100 -> -1.300214107
A64: Kilometres per year | B64: ='Inputs and assumptions'!C51*B65 -> 108305.8002 | C64: 107000 | D64: =B64/C64*100-100 -> 1.220374044
A65: Occupied kilometres per taxi per year | B65: =SUMPRODUCT(D57:Q57,D49:Q49)/100*365/7 -> 54301.0606 | C65: NA
A66: Average revenue per taxi per year (excluding GST) | B66: =B67+B68 -> 158841.737 | C66: =152556*(1+'Inputs and assumptions'!C18) -> 158200.572 | D66: =B66/C66*100-100 -> 0.4052861313
A67: Average cost per taxi per year (excluding plate lease costs) | B67: =SUMPRODUCT(D47:Q47,D49:Q49)/100*365/7 -> 130261.1586 | C67: =(C66)-C68 -> 130045.572 | D67: =B67/C67*100-100 -> 0.1657777317
A68: Plate lease costs | B68: =D54 -> 28580.57838 | C68: 28155 | D68: =B68/C68*100-100 -> 1.511555242
A69: ="Peak plate lease costs driving "&'Inputs and assumptions'!C62*100&"% of peak days" -> Peak plate lease costs driving 90% of peak days | B69: =(SUM($K$51:$Q$51)+'Inputs and assumptions'!$C$61*SUM('Base model'!$K$46:$Q$46))*365/7*'Inputs and assumptions'!$C$62-('Inputs and assumptions'!C29*(1-'Inputs and assumptions'!$C$62*365/'Inputs and assumptions'!C44)) -> 22015.95547 | C69: =26786.36/34651.92*C68 -> 21764.161 | D69: =B69/C69*100-100 -> 1.156922466

Sheet Sim_Template
A1: Flagfall ($) | B1: 3.5 | C1: Change in unrestricted licences (No.) | D1: 0 | E1: Change in costs (% real) | G1: 0
A2: Standard distance rate ($/km) | B2: 2.14 | C2: Change in peak availability licences (No.) | D2: 250 | E2: Change in value of time (% nominal) | G2: 0
A3: Night time distance rate ($/km) | B3: 2.568 | C3: Change in demand (%) | D3: 0.025
A4: Waiting time ($/hour when vehicle slower than 26km/hour) | B4: 55.3
A5: Booking fee ($/booking) | B5: 2.4 | C5: CPI (%) | D5: 0.025
A6: CALIBRATION OF MODEL PARAMETERS
A7: Day | B7: Description | C7: Unit | D7: Monday | E7: Tuesday | F7: Wednesday | G7: Thursday | H7: Friday | I7: Saturday | J7: Sunday | K7: Monday | L7: Tuesday | M7: Wednesday | N7: Thursday | O7: Friday | P7: Saturday | Q7: Sunday
A8: Shift | D8: Day | E8: Day | F8: Day | G8: Day | H8: Day | I8: Day | J8: Day | K8: Night | L8: Night | M8: Night | N8: Night | O8: Night | P8: Night | Q8: Night
A9: Additional peak flagfall (nominal, including GST) | C9: $/trip
B10: Demand intercept with y axis | C10: Kms occupied | D10: ='Base model'!D10*(1+$D$3) -> 769568.7982 | E10: ='Base model'!E10*(1+$D$3) -> 764156.6191 | F10: ='Base model'!F10*(1+$D$3) -> 785787.8198 | G10: ='Base model'!G10*(1+$D$3) -> 833275.543 | H10: ='Base model'!H10*(1+$D$3) -> 841580.161 | I10: ='Base model'!I10*(1+$D$3) -> 596626.0017 | J10: ='Base model'!J10*(1+$D$3) -> 543822.7451 | K10: ='Base model'!K10*(1+$D$3) -> 627557.2434 | L10: ='Base model'!L10*(1+$D$3) -> 767182.3264 | M10: ='Base model'!M10*(1+$D$3) -> 878165.6571 | N10: ='Base model'!N10*(1+$D$3) -> 1030381.455 | O10: ='Base model'!O10*(1+$D$3) -> 1386098.858 | P10: ='Base model'!P10*(1+$D$3) -> 1278531.428 | Q10: ='Base model'!Q10*(1+$D$3) -> 562818.5373
B11: Impact of price on demand kilometres | C11: Change in Q per extra dollar | D11: ='Base model'!D11*(1+$D$3) -> 111897.6591 | E11: ='Base model'!E11*(1+$D$3) -> 111110.7117 | F11: ='Base model'!F11*(1+$D$3) -> 114255.9545 | G11: ='Base model'!G11*(1+$D$3) -> 121160.8148 | H11: ='Base model'!H11*(1+$D$3) -> 122626.6944 | I11: ='Base model'!I11*(1+$D$3) -> 86934.40955 | J11: ='Base model'!J11*(1+$D$3) -> 79255.81323 | K11: ='Base model'!K11*(1+$D$3) -> 90619.69371 | L11: ='Base model'!L11*(1+$D$3) -> 110781.6509 | M11: ='Base model'!M11*(1+$D$3) -> 126807.7195 | N11: ='Base model'!N11*(1+$D$3) -> 148787.7845 | O11: ='Base model'!O11*(1+$D$3) -> 192895.7696 | P11: ='Base model'!P11*(1+$D$3) -> 174362.5153 | Q11: ='Base model'!Q11*(1+$D$3) -> 78915.56276
B12: Impact of waiting time on demand kilometres | C12: Change in Q per extra minute | D12: ='Base model'!D12*(1+$G$2)/(1+$D$5)*(1+$D$3) -> 7797.74628 | E12: ='Base model'!E12*(1+$G$2)/(1+$D$5)*(1+$D$3) -> 7742.90674 | F12: ='Base model'!F12*(1+$G$2)/(1+$D$5)*(1+$D$3) -> 7962.087422 | G12: ='Base model'!G12*(1+$G$2)/(1+$D$5)*(1+$D$3) -> 8443.262358 | H12: ='Base model'!H12*(1+$G$2)/(1+$D$5)*(1+$D$3) -> 8545.414244 | I12: ='Base model'!I12*(1+$G$2)/(1+$D$5)*(1+$D$3) -> 6058.147007 | J12: ='Base model'!J12*(1+$G$2)/(1+$D$5)*(1+$D$3) -> 5523.053187 | K12: ='Base model'!K12*(1+$G$2)/(1+$D$5)*(1+$D$3) -> 6314.961234 | L12: ='Base model'!L12*(1+$G$2)/(1+$D$5)*(1+$D$3) -> 7719.97567 | M12: ='Base model'!M12*(1+$G$2)/(1+$D$5)*(1+$D$3) -> 8836.774876 | N12: ='Base model'!N12*(1+$G$2)/(1+$D$5)*(1+$D$3) -> 10368.48672 | O12: ='Base model'!O12*(1+$G$2)/(1+$D$5)*(1+$D$3) -> 13442.21391 | P12: ='Base model'!P12*(1+$G$2)/(1+$D$5)*(1+$D$3) -> 12150.69793 | Q12: ='Base model'!Q12*(1+$G$2)/(1+$D$5)*(1+$D$3) -> 5499.342352
A13: P | B13: Price per kilometre of demand (excluding GST) | C13: $/km occupied | D13: =(($B$1+D9+'Inputs and assumptions'!$C$45*$B$5)/'Inputs and assumptions'!$C$42+($B$2*'Inputs and assumptions'!D9+$B$3*(1-'Inputs and assumptions'!D9))*'Inputs and assumptions'!$C$50/'Inputs and assumptions'!$C$42+('Inputs and assumptions'!$C$49/60*$B$4)/'Inputs and assumptions'!$C$42)/$B$20/(1+$D$5) -> 2.736355763 | E13: =(($B$1+E9+'Inputs and assumptions'!$C$45*$B$5)/'Inputs and assumptions'!$C$42+($B$2*'Inputs and assumptions'!E9+$B$3*(1-'Inputs and assumptions'!E9))*'Inputs and assumptions'!$C$50/'Inputs and assumptions'!$C$42+('Inputs and assumptions'!$C$49/60*$B$4)/'Inputs and assumptions'!$C$42)/$B$20/(1+$D$5) -> 2.736355763 | F13: =(($B$1+F9+'Inputs and assumptions'!$C$45*$B$5)/'Inputs and assumptions'!$C$42+($B$2*'Inputs and assumptions'!F9+$B$3*(1-'Inputs and assumptions'!F9))*'Inputs and assumptions'!$C$50/'Inputs and assumptions'!$C$42+('Inputs and assumptions'!$C$49/60*$B$4)/'Inputs and assumptions'!$C$42)/$B$20/(1+$D$5) -> 2.736355763 | G13: =(($B$1+G9+'Inputs and assumptions'!$C$45*$B$5)/'Inputs and assumptions'!$C$42+($B$2*'Inputs and assumptions'!G9+$B$3*(1-'Inputs and assumptions'!G9))*'Inputs and assumptions'!$C$50/'Inputs and assumptions'!$C$42+('Inputs and assumptions'!$C$49/60*$B$4)/'Inputs and assumptions'!$C$42)/$B$20/(1+$D$5) -> 2.736355763 | H13: =(($B$1+H9+'Inputs and assumptions'!$C$45*$B$5)/'Inputs and assumptions'!$C$42+($B$2*'Inputs and assumptions'!H9+$B$3*(1-'Inputs and assumptions'!H9))*'Inputs and assumptions'!$C$50/'Inputs and assumptions'!$C$42+('Inputs and assumptions'!$C$49/60*$B$4)/'Inputs and assumptions'!$C$42)/$B$20/(1+$D$5) -> 2.736355763 | I13: =(($B$1+I9+'Inputs and assumptions'!$C$45*$B$5)/'Inputs and assumptions'!$C$42+($B$2*'Inputs and assumptions'!I9+$B$3*(1-'Inputs and assumptions'!I9))*'Inputs and assumptions'!$C$50/'Inputs and assumptions'!$C$42+('Inputs and assumptions'!$C$49/60*$B$4)/'Inputs and assumptions'!$C$42)/$B$20/(1+$D$5) -> 2.736355763 | J13: =(($B$1+J9+'Inputs and assumptions'!$C$45*$B$5)/'Inputs and assumptions'!$C$42+($B$2*'Inputs and assumptions'!J9+$B$3*(1-'Inputs and assumptions'!J9))*'Inputs and assumptions'!$C$50/'Inputs and assumptions'!$C$42+('Inputs and assumptions'!$C$49/60*$B$4)/'Inputs and assumptions'!$C$42)/$B$20/(1+$D$5) -> 2.736355763 | K13: =(($B$1+K9+'Inputs and assumptions'!$C$45*$B$5)/'Inputs and assumptions'!$C$42+($B$2*'Inputs and assumptions'!K9+$B$3*(1-'Inputs and assumptions'!K9))*'Inputs and assumptions'!$C$50/'Inputs and assumptions'!$C$42+('Inputs and assumptions'!$C$49/60*$B$4)/'Inputs and assumptions'!$C$42)/$B$20/(1+$D$5) -> 2.784116678 | L13: =(($B$1+L9+'Inputs and assumptions'!$C$45*$B$5)/'Inputs and assumptions'!$C$42+($B$2*'Inputs and assumptions'!L9+$B$3*(1-'Inputs and assumptions'!L9))*'Inputs and assumptions'!$C$50/'Inputs and assumptions'!$C$42+('Inputs and assumptions'!$C$49/60*$B$4)/'Inputs and assumptions'!$C$42)/$B$20/(1+$D$5) -> 2.784116678 | M13: =(($B$1+M9+'Inputs and assumptions'!$C$45*$B$5)/'Inputs and assumptions'!$C$42+($B$2*'Inputs and assumptions'!M9+$B$3*(1-'Inputs and assumptions'!M9))*'Inputs and assumptions'!$C$50/'Inputs and assumptions'!$C$42+('Inputs and assumptions'!$C$49/60*$B$4)/'Inputs and assumptions'!$C$42)/$B$20/(1+$D$5) -> 2.784116678 | N13: =(($B$1+N9+'Inputs and assumptions'!$C$45*$B$5)/'Inputs and assumptions'!$C$42+($B$2*'Inputs and assumptions'!N9+$B$3*(1-'Inputs and assumptions'!N9))*'Inputs and assumptions'!$C$50/'Inputs and assumptions'!$C$42+('Inputs and assumptions'!$C$49/60*$B$4)/'Inputs and assumptions'!$C$42)/$B$20/(1+$D$5) -> 2.784116678 | O13: =(($B$1+O9+'Inputs and assumptions'!$C$45*$B$5)/'Inputs and assumptions'!$C$42+($B$2*'Inputs and assumptions'!O9+$B$3*(1-'Inputs and assumptions'!O9))*'Inputs and assumptions'!$C$50/'Inputs and assumptions'!$C$42+('Inputs and assumptions'!$C$49/60*$B$4)/'Inputs and assumptions'!$C$42)/$B$20/(1+$D$5) -> 2.831877593 | P13: =(($B$1+P9+'Inputs and assumptions'!$C$45*$B$5)/'Inputs and assumptions'!$C$42+($B$2*'Inputs and assumptions'!P9+$B$3*(1-'Inputs and assumptions'!P9))*'Inputs and assumptions'!$C$50/'Inputs and assumptions'!$C$42+('Inputs and assumptions'!$C$49/60*$B$4)/'Inputs and assumptions'!$C$42)/$B$20/(1+$D$5) -> 2.895558812 | Q13: =(($B$1+Q9+'Inputs and assumptions'!$C$45*$B$5)/'Inputs and assumptions'!$C$42+($B$2*'Inputs and assumptions'!Q9+$B$3*(1-'Inputs and assumptions'!Q9))*'Inputs and assumptions'!$C$50/'Inputs and assumptions'!$C$42+('Inputs and assumptions'!$C$49/60*$B$4)/'Inputs and assumptions'!$C$42)/$B$20/(1+$D$5) -> 2.784116678
A14: c | B14: Variable cost | C14: $/km occupied | D14: ='Base model'!D14*(1+$G$1) -> 0.4828223323 | E14: ='Base model'!E14*(1+$G$1) -> 0.4828223323 | F14: ='Base model'!F14*(1+$G$1) -> 0.4828223323 | G14: ='Base model'!G14*(1+$G$1) -> 0.4828223323 | H14: ='Base model'!H14*(1+$G$1) -> 0.4828223323 | I14: ='Base model'!I14*(1+$G$1) -> 0.4828223323 | J14: ='Base model'!J14*(1+$G$1) -> 0.4828223323 | K14: ='Base model'!K14*(1+$G$1) -> 0.4828223323 | L14: ='Base model'!L14*(1+$G$1) -> 0.4828223323 | M14: ='Base model'!M14*(1+$G$1) -> 0.4828223323 | N14: ='Base model'!N14*(1+$G$1) -> 0.4828223323 | O14: ='Base model'!O14*(1+$G$1) -> 0.4828223323 | P14: ='Base model'!P14*(1+$G$1) -> 0.4828223323 | Q14: ='Base model'!Q14*(1+$G$1) -> 0.4828223323
B15: Fixed component of shift costs | C15: $/taxi/shift | D15: ='Base model'!D15*(1+$G$1) -> 146.3905063 | E15: ='Base model'!E15*(1+$G$1) -> 146.3905063 | F15: ='Base model'!F15*(1+$G$1) -> 146.3905063 | G15: ='Base model'!G15*(1+$G$1) -> 146.3905063 | H15: ='Base model'!H15*(1+$G$1) -> 146.3905063 | I15: ='Base model'!I15*(1+$G$1) -> 167.1305063 | J15: ='Base model'!J15*(1+$G$1) -> 167.1305063 | K15: ='Base model'!K15*(1+$G$1) -> 146.3905063 | L15: ='Base model'!L15*(1+$G$1) -> 146.3905063 | M15: ='Base model'!M15*(1+$G$1) -> 146.3905063 | N15: ='Base model'!N15*(1+$G$1) -> 146.3905063 | O15: ='Base model'!O15*(1+$G$1) -> 167.1305063 | P15: ='Base model'!P15*(1+$G$1) -> 167.1305063 | Q15: ='Base model'!Q15*(1+$G$1) -> 167.1305063
B16: Variable component of fixed costs | C16: $/additional taxi per shift | D16: ='Base model'!D16*(1+$G$1) -> 0.008 | E16: ='Base model'!E16*(1+$G$1) -> 0.008 | F16: ='Base model'!F16*(1+$G$1) -> 0.008 | G16: ='Base model'!G16*(1+$G$1) -> 0.008 | H16: ='Base model'!H16*(1+$G$1) -> 0.008 | I16: ='Base model'!I16*(1+$G$1) -> 0.008 | J16: ='Base model'!J16*(1+$G$1) -> 0.008 | K16: ='Base model'!K16*(1+$G$1) -> 0.008 | L16: ='Base model'!L16*(1+$G$1) -> 0.008 | M16: ='Base model'!M16*(1+$G$1) -> 0.008 | N16: ='Base model'!N16*(1+$G$1) -> 0.008 | O16: ='Base model'!O16*(1+$G$1) -> 0.008 | P16: ='Base model'!P16*(1+$G$1) -> 0.008 | Q16: ='Base model'!Q16*(1+$G$1) -> 0.008
B17: Waiting time constant | C17: Unit | D17: ='Base model'!D17 -> 25045.68164 | E17: ='Base model'!E17 -> 25045.68164 | F17: ='Base model'!F17 -> 25045.68164 | G17: ='Base model'!G17 -> 25045.68164 | H17: ='Base model'!H17 -> 25045.68164 | I17: ='Base model'!I17 -> 25045.68164 | J17: ='Base model'!J17 -> 25045.68164 | K17: ='Base model'!K17 -> 25045.68164 | L17: ='Base model'!L17 -> 25045.68164 | M17: ='Base model'!M17 -> 25045.68164 | N17: ='Base model'!N17 -> 25045.68164 | O17: ='Base model'!O17 -> 25045.68164 | P17: ='Base model'!P17 -> 25045.68164 | Q17: ='Base model'!Q17 -> 25045.68164
B18: Constant to link occupied taxi kms to occupied taxis | C18: Unit | D18: ='Base model'!D18 -> 0.00303030303 | E18: ='Base model'!E18 -> 0.00303030303 | F18: ='Base model'!F18 -> 0.00303030303 | G18: ='Base model'!G18 -> 0.00303030303 | H18: ='Base model'!H18 -> 0.00303030303 | I18: ='Base model'!I18 -> 0.00303030303 | J18: ='Base model'!J18 -> 0.00303030303 | K18: ='Base model'!K18 -> 0.00303030303 | L18: ='Base model'!L18 -> 0.00303030303 | M18: ='Base model'!M18 -> 0.00303030303 | N18: ='Base model'!N18 -> 0.00303030303 | O18: ='Base model'!O18 -> 0.00303030303 | P18: ='Base model'!P18 -> 0.00303030303 | Q18: ='Base model'!Q18 -> 0.00303030303
A20: GST adjustor | B20: =(1+'Inputs and assumptions'!$C$19) -> 1.1
D23: Monday | E23: Tuesday | F23: Wednesday | G23: Thursday | H23: Friday | I23: Saturday | J23: Sunday | K23: Monday | L23: Tuesday | M23: Wednesday | N23: Thursday | O23: Friday | P23: Saturday | Q23: Sunday
A24: SIMULATION MODEL | D24: Day | E24: Day | F24: Day | G24: Day | H24: Day | I24: Day | J24: Day | K24: Night | L24: Night | M24: Night | N24: Night | O24: Night | P24: Night | Q24: Night
A25: Q* | B25: Free entry demand | C25: Occupied kilometres | D25: 411006.0511 | E25: 407803.131 | F25: 420602.1932 | G25: 448681.7067 | H25: 452691.3548 | I25: 299368.0633 | J25: 267459.6656 | K25: 325552.1627 | L25: 407774.7431 | M25: 472940.1794 | N25: 562186.5337 | O25: 779472.0075 | P25: 717526.8902 | Q25: 288957.9533
A26: W* | B26: Free entry waiting time | C26: Minutes, average | D26: 6.716163969 | E26: 6.756513218 | F26: 6.598858335 | G26: 6.283678053 | H26: 6.241773971 | I26: 9.80076345 | J26: 10.77139331 | K26: 7.871668285 | L26: 6.603458824 | M26: 5.904641886 | N26: 5.203495054 | O26: 4.491049087 | P26: 4.619291842 | Q26: 9.846713671
A27: T* | B27: Free entry number of taxis on the road | C27: Taxis on the road | D27: 4974.637623 | E27: 4942.661709 | F27: 5070.008949 | G27: 5345.473313 | H27: 5384.38259 | I27: 3462.658677 | J27: 3135.687359 | K27: 4168.271863 | L27: 5028.493615 | M27: 5674.845846 | N27: 6516.838216 | O27: 7938.836682 | P27: 7596.298774 | Q27: 3419.187593
A28: Q* zero condition | B28: Zero condition to solve for free entry | C28: Occupied kilometres | D28: =D10-D11*D13-D12*D26-D25 -> 9.313225746e-10 | E28: -7.916241884e-09 | F28: 1.804437488e-09 | G28: 6.286427379e-09 | H28: 9.313225746e-10 | I28: 5.995389074e-09 | J28: -1.047737896e-09 | K28: -6.519258022e-09 | L28: -6.4028427e-10 | M28: -1.105945557e-09 | N28: -1.536682248e-08 | O28: 1.827720553e-08 | P28: 3.364402801e-08 | Q28: 5.937181413e-09
A29: W* zero condition | B29: Zero condition to solve for free entry | C29: Minutes, average | D29: =D17/(D27-D25*D18)-D26 -> -6.180033285e-08 | E29: -2.768305682e-07 | F29: -1.114711896e-07 | G29: -5.074005109e-07 | H29: -4.873320849e-07 | I29: -2.8239592e-08 | J29: -2.308008362e-08 | K29: -5.390768365e-08 | L29: -6.808489772e-09 | M29: -2.744600547e-07 | N29: -5.684743103e-07 | O29: -4.011272301e-07 | P29: -4.835127712e-07 | Q29: -3.757103073e-08
A30: T* zero condition | B30: Zero condition to solve for free entry | C30: Taxis on the road | D30: =(-D15+SQRT(D15^2+4*D16*(D13-D14)*D25))/(2*D16)-D27 -> 7.371445463e-07 | E30: 3.218255188e-06 | F30: 1.36010658e-06 | G30: 6.548788406e-06 | H30: 6.395758646e-06 | I30: 1.977637112e-07 | J30: 1.413004611e-07 | K30: 5.110096026e-07 | L30: 8.247116057e-08 | M30: 3.785780791e-06 | N30: 9.352847883e-06 | O30: 7.678777365e-06 | P30: 8.569693819e-06 | Q30: 2.419978955e-07
A31: Qbar | B31: Fixed taxi numbers demand | C31: Occupied kilometres | D31: =((D18*(D10-D11*D13)+D33)-SQRT((D18*(D10-D11*D13)+D33)^2-4*D18*(D33*(D10-D11*D13)-D12*D17)))/(2*D18) -> 400840.908 | E31: 398799.0489 | F31: 410144.1232 | G31: 436466.2921 | H31: 436802.3064 | I31: 305092.9586 | J31: 279352.5039 | K31: 324942.8909 | L31: 398358.8422 | M31: 455839.5052 | N31: 534763.0647 | O31: 725063.8229 | P31: 666685.4567 | Q31: 300305.491
A32: Wbar | B32: Fixed taxi numbers waiting time | C32: Minutes, average | D32: =D17/(D33-D31*D18) -> 8.019764109 | E32: 7.919394601 | F32: 7.91234178 | G32: 7.730442821 | H32: 8.101139473 | I32: 8.855772298 | J32: 8.618084648 | K32: 7.968148969 | L32: 7.823138957 | M32: 7.839813307 | N32: 7.848381407 | O32: 8.538610373 | P32: 8.803531616 | Q32: 7.783278271
A33: Tbar | B33: Fixed taxi numbers | C33: Taxis on the road | D33: ='Base model'!D8/'Base model'!D6*('Base model'!D6+$D$1) -> 4337.664222 | E33: ='Base model'!E8/'Base model'!E6*('Base model'!E6+$D$1) -> 4371.057252 | F33: ='Base model'!F8/'Base model'!F6*('Base model'!F6+$D$1) -> 4408.255288 | G33: ='Base model'!G8/'Base model'!G6*('Base model'!G6+$D$1) -> 4562.501836 | H33: ='Base model'!H8/'Base model'!H6*('Base model'!H6+$D$1) -> 4415.267898 | I33: ='Base model'!I8/'Base model'!I6*('Base model'!I6+$D$1) -> 3752.7 | J33: ='Base model'!J8/'Base model'!J6*('Base model'!J6+$D$1) -> 3752.7 | K33: ='Base model'!K8/'Base model'!K6*('Base model'!K6+$D$1+$D$2) -> 4127.9 | L33: ='Base model'!L8/'Base model'!L6*('Base model'!L6+$D$1+$D$2) -> 4408.635514 | M33: ='Base model'!M8/'Base model'!M6*('Base model'!M6+$D$1+$D$2) -> 4576.010158 | N33: ='Base model'!N8/'Base model'!N6*('Base model'!N6+$D$1+$D$2) -> 4811.68482 | O33: ='Base model'!O8/'Base model'!O6*('Base model'!O6+$D$1+$D$2) -> 5130.39 | P33: ='Base model'!P8/'Base model'!P6*('Base model'!P6+$D$1+$D$2) -> 4865.217407 | Q33: ='Base model'!Q8/'Base model'!Q6*('Base model'!Q6+$D$1+$D$2) -> 4127.9
A34: Q*_flat | B34: Free entry demand, flat cost curve | C34: Occupied kilometres | D34: =(D10-D11*D13+SQRT((D10-D11*D13)^2-4*D12*D17/((D13-D14)/D15-D18)))/2 -> 426324.8405 | E34: 423041.0159 | F34: 436163.2223 | G34: 464949.8939 | H34: 469130.0253 | I34: 312258.7232 | J34: 279627.2103 | K34: 338434.15 | L34: 422707.9736 | M34: 489487.3694 | N34: 580911.6677 | O34: 801753.7054 | P34: 737475.6095 | Q34: 300415.9584
A35: W*_flat | B35: Free entry waiting time, flat cost curve | C35: Minutes, average | D35: =D17/((D13-D14)/D15-D18)/D34 -> 4.751648987 | E35: 4.788533311 | F35: 4.644467697 | G35: 4.356912483 | H35: 4.318090694 | I35: 7.672941227 | J35: 8.568346508 | K35: 5.831752788 | L35: 4.669096448 | M35: 4.03210465 | N35: 3.397529104 | O35: 2.833457712 | P35: 2.977516252 | Q35: 7.763190898
A36: T*_flat | B36: Free entry number of taxis on the road, flat cost curve | C36: Taxis on the road | D36: =(D13-D14)*D34/D15 -> 6562.838702 | E36: 6512.287551 | F36: 6714.290615 | G36: 7157.432239 | H36: 7221.781125 | I36: 4210.395141 | J36: 3770.402426 | K36: 5320.267108 | L36: 6645.072101 | M36: 7694.860436 | N36: 9132.07263 | O36: 11268.821 | P36: 10646.37657 | Q36: 4136.561071
A37: Q | B37: Equilibrium demand | C37: Occupied kilometres | D37: =IF(D39=D$33,D31,IF('Inputs and assumptions'!$C$59="Flat",D34,D25)) -> 400840.908 | E37: =IF(E39=E$33,E31,IF('Inputs and assumptions'!$C$59="Flat",E34,E25)) -> 398799.0489 | F37: =IF(F39=F$33,F31,IF('Inputs and assumptions'!$C$59="Flat",F34,F25)) -> 410144.1232 | G37: =IF(G39=G$33,G31,IF('Inputs and assumptions'!$C$59="Flat",G34,G25)) -> 436466.2921 | H37: =IF(H39=H$33,H31,IF('Inputs and assumptions'!$C$59="Flat",H34,H25)) -> 436802.3064 | I37: =IF(I39=I$33,I31,IF('Inputs and assumptions'!$C$59="Flat",I34,I25)) -> 299368.0633 | J37: =IF(J39=J$33,J31,IF('Inputs and assumptions'!$C$59="Flat",J34,J25)) -> 267459.6656 | K37: =IF(K39=K$33,K31,IF('Inputs and assumptions'!$C$59="Flat",K34,K25)) -> 324942.8909 | L37: =IF(L39=L$33,L31,IF('Inputs and assumptions'!$C$59="Flat",L34,L25)) -> 398358.8422 | M37: =IF(M39=M$33,M31,IF('Inputs and assumptions'!$C$59="Flat",M34,M25)) -> 455839.5052 | N37: =IF(N39=N$33,N31,IF('Inputs and assumptions'!$C$59="Flat",N34,N25)) -> 534763.0647 | O37: =IF(O39=O$33,O31,IF('Inputs and assumptions'!$C$59="Flat",O34,O25)) -> 725063.8229 | P37: =IF(P39=P$33,P31,IF('Inputs and assumptions'!$C$59="Flat",P34,P25)) -> 666685.4567 | Q37: =IF(Q39=Q$33,Q31,IF('Inputs and assumptions'!$C$59="Flat",Q34,Q25)) -> 288957.9533
A38: W | B38: Equilibrium waiting time | C38: Minutes, average | D38: =IF(D39=D$33,D32,IF('Inputs and assumptions'!$C$59="Flat",D35,D26)) -> 8.019764109 | E38: =IF(E39=E$33,E32,IF('Inputs and assumptions'!$C$59="Flat",E35,E26)) -> 7.919394601 | F38: =IF(F39=F$33,F32,IF('Inputs and assumptions'!$C$59="Flat",F35,F26)) -> 7.91234178 | G38: =IF(G39=G$33,G32,IF('Inputs and assumptions'!$C$59="Flat",G35,G26)) -> 7.730442821 | H38: =IF(H39=H$33,H32,IF('Inputs and assumptions'!$C$59="Flat",H35,H26)) -> 8.101139473 | I38: =IF(I39=I$33,I32,IF('Inputs and assumptions'!$C$59="Flat",I35,I26)) -> 9.80076345 | J38: =IF(J39=J$33,J32,IF('Inputs and assumptions'!$C$59="Flat",J35,J26)) -> 10.77139331 | K38: =IF(K39=K$33,K32,IF('Inputs and assumptions'!$C$59="Flat",K35,K26)) -> 7.968148969 | L38: =IF(L39=L$33,L32,IF('Inputs and assumptions'!$C$59="Flat",L35,L26)) -> 7.823138957 | M38: =IF(M39=M$33,M32,IF('Inputs and assumptions'!$C$59="Flat",M35,M26)) -> 7.839813307 | N38: =IF(N39=N$33,N32,IF('Inputs and assumptions'!$C$59="Flat",N35,N26)) -> 7.848381407 | O38: =IF(O39=O$33,O32,IF('Inputs and assumptions'!$C$59="Flat",O35,O26)) -> 8.538610373 | P38: =IF(P39=P$33,P32,IF('Inputs and assumptions'!$C$59="Flat",P35,P26)) -> 8.803531616 | Q38: =IF(Q39=Q$33,Q32,IF('Inputs and assumptions'!$C$59="Flat",Q35,Q26)) -> 9.846713671
A39: T | B39: Equilibrium number of taxis on the road | C39: Taxis on the road | D39: =IF('Inputs and assumptions'!$C$59="Flat",MIN(D36,D33),MIN(D27,D33)) -> 4337.664222 | E39: =IF('Inputs and assumptions'!$C$59="Flat",MIN(E36,E33),MIN(E27,E33)) -> 4371.057252 | F39: =IF('Inputs and assumptions'!$C$59="Flat",MIN(F36,F33),MIN(F27,F33)) -> 4408.255288 | G39: =IF('Inputs and assumptions'!$C$59="Flat",MIN(G36,G33),MIN(G27,G33)) -> 4562.501836 | H39: =IF('Inputs and assumptions'!$C$59="Flat",MIN(H36,H33),MIN(H27,H33)) -> 4415.267898 | I39: =IF('Inputs and assumptions'!$C$59="Flat",MIN(I36,I33),MIN(I27,I33)) -> 3462.658677 | J39: =IF('Inputs and assumptions'!$C$59="Flat",MIN(J36,J33),MIN(J27,J33)) -> 3135.687359 | K39: =IF('Inputs and assumptions'!$C$59="Flat",MIN(K36,K33),MIN(K27,K33)) -> 4127.9 | L39: =IF('Inputs and assumptions'!$C$59="Flat",MIN(L36,L33),MIN(L27,L33)) -> 4408.635514 | M39: =IF('Inputs and assumptions'!$C$59="Flat",MIN(M36,M33),MIN(M27,M33)) -> 4576.010158 | N39: =IF('Inputs and assumptions'!$C$59="Flat",MIN(N36,N33),MIN(N27,N33)) -> 4811.68482 | O39: =IF('Inputs and assumptions'!$C$59="Flat",MIN(O36,O33),MIN(O27,O33)) -> 5130.39 | P39: =IF('Inputs and assumptions'!$C$59="Flat",MIN(P36,P33),MIN(P27,P33)) -> 4865.217407 | Q39: =IF('Inputs and assumptions'!$C$59="Flat",MIN(Q36,Q33),MIN(Q27,Q33)) -> 3419.187593
A43: DETAILED MODEL OUTPUTS
D44: Monday | E44: Tuesday | F44: Wednesday | G44: Thursday | H44: Friday | I44: Saturday | J44: Sunday | K44: Monday | L44: Tuesday | M44: Wednesday | N44: Thursday | O44: Friday | P44: Saturday | Q44: Sunday
D45: Day | E45: Day | F45: Day | G45: Day | H45: Day | I45: Day | J45: Day | K45: Night | L45: Night | M45: Night | N45: Night | O45: Night | P45: Night | Q45: Night
A46: Revenue per taxi (excluding GST) | D46: =D37*D13/D39 -> 252.864969 | E46: =E37*E13/E39 -> 249.6549492 | F46: =F37*F13/F39 -> 254.590572 | G46: 261.7702079 | H46: 270.7075847 | I46: 236.5747253 | J46: =J37*J13/J39 -> 233.3985227 | K46: 219.1620248 | L46: 251.5693332 | M46: 277.339937 | N46: 309.4223381 | O46: 400.2214244 | P46: 396.7812305 | Q46: 235.2876627
A47: Cost per taxi | D47: =D15+D16*D39+D14*D37/D39 -> 225.7091377 | E47: =E15+E16*E39+E14*E37/E39 -> 225.4098829 | F47: 226.5783441 | G47: 229.0791431 | H47: 229.4782468 | I47: 236.5747253 | J47: 233.3985227 | K47: 217.4208491 | L47: 225.2868181 | M47: 231.094961 | N47: 238.5440977 | O47: 276.4095706 | P47: 272.2138578 | Q47: =Q15+Q16*Q39+Q14*Q37/Q39 -> 235.2876627
A48: Surplus per taxi | D48: =D46-D47 -> 27.15583127 | E48: 24.24506627 | F48: 28.01222795 | G48: 32.69106476 | H48: 41.2293379 | I48: 1.270962002e-08 | J48: 9.792046285e-09 | K48: 1.741175713 | L48: 26.28251503 | M48: 46.24497601 | N48: 70.87824037 | O48: 123.8118538 | P48: 124.5673727 | Q48: =Q46-Q47 -> 1.570091968e-08
A49: Share of taxis on the road | D49: =D39/('Base model'!D6+$D$1)*100 -> 80.91147588 | E49: =E39/('Base model'!E6+$D$1)*100 -> 81.53436395 | F49: =F39/('Base model'!F6+$D$1)*100 -> 82.22822772 | G49: =G39/('Base model'!G6+$D$1)*100 -> 85.10542503 | H49: =H39/('Base model'!H6+$D$1)*100 -> 82.35903559 | I49: =I39/('Base model'!I6+$D$1)*100 -> 64.58979065 | J49: =J39/('Base model'!J6+$D$1)*100 -> 58.49071739 | K49: =K39/('Base model'!K6+$D$1+$D$2)*100 -> 70 | L49: =L39/('Base model'!L6+$D$1+$D$2)*100 -> 74.76064972 | M49: =M39/('Base model'!M6+$D$1+$D$2)*100 -> 77.5989513 | N49: =N39/('Base model'!N6+$D$1+$D$2)*100 -> 81.59546923 | O49: =O39/('Base model'!O6+$D$1+$D$2)*100 -> 87 | P49: =P39/('Base model'!P6+$D$1+$D$2)*100 -> 82.5032628 | Q49: =Q39/('Base model'!Q6+$D$1+$D$2)*100 -> 57.98181437
A50: Free market taxis on the road as a proportion of maximum | D50: =D27/D33*100 -> 114.6847098 | E50: =E27/E33*100 -> 113.0770297 | F50: =F27/F33*100 -> 115.011691 | G50: 117.1610118 | H50: 121.9491708 | I50: 92.2711295 | J50: 83.5581677 | K50: 100.9780243 | L50: 114.0600895 | M50: 124.0129643 | N50: 135.4377616 | O50: 154.7413877 | P50: 156.1348268 | Q50: 82.83116338
A51: Average surplus accruing to shift (adjusted for distribution) | D51: =D48*D52+_xlfn.NORM.DIST(-1*(D50-100)/'Inputs and assumptions'!$C$57,0,1,FALSE)*'Inputs and assumptions'!$C$57/$C$52 -> 34.98493488 | E51: =E48*E52+_xlfn.NORM.DIST(-1*(E50-100)/'Inputs and assumptions'!$C$57,0,1,FALSE)*'Inputs and assumptions'!$C$57/$C$52 -> 32.91112866 | F51: =F48*F52+_xlfn.NORM.DIST(-1*(F50-100)/'Inputs and assumptions'!$C$57,0,1,FALSE)*'Inputs and assumptions'!$C$57/$C$52 -> 35.60617992 | G51: =G48*G52+_xlfn.NORM.DIST(-1*(G50-100)/'Inputs and assumptions'!$C$57,0,1,FALSE)*'Inputs and assumptions'!$C$57/$C$52 -> 39.09174112 | H51: =H48*H52+_xlfn.NORM.DIST(-1*(H50-100)/'Inputs and assumptions'!$C$57,0,1,FALSE)*'Inputs and assumptions'!$C$57/$C$52 -> 45.83591922 | I51: =I48*I52+_xlfn.NORM.DIST(-1*(I50-100)/'Inputs and assumptions'!$C$57,0,1,FALSE)*'Inputs and assumptions'!$C$57/$C$52 -> 17.43903958 | J51: =J48*J52+_xlfn.NORM.DIST(-1*(J50-100)/'Inputs and assumptions'!$C$57,0,1,FALSE)*'Inputs and assumptions'!$C$57/$C$52 -> 14.74462478 | K51: =K48*K52+_xlfn.NORM.DIST(-1*(K50-100)/'Inputs and assumptions'!$C$57,0,1,FALSE)*'Inputs and assumptions'!$C$57/$C$52 -> 19.17307203 | L51: =L48*L52+_xlfn.NORM.DIST(-1*(L50-100)/'Inputs and assumptions'!$C$57,0,1,FALSE)*'Inputs and assumptions'!$C$57/$C$52 -> 34.3553231 | M51: =M48*M52+_xlfn.NORM.DIST(-1*(M50-100)/'Inputs and assumptions'!$C$57,0,1,FALSE)*'Inputs and assumptions'!$C$57/$C$52 -> 49.98717182 | N51: =N48*N52+_xlfn.NORM.DIST(-1*(N50-100)/'Inputs and assumptions'!$C$57,0,1,FALSE)*'Inputs and assumptions'!$C$57/$C$52 -> 72.03246457 | O51: =O48*O52+_xlfn.NORM.DIST(-1*(O50-100)/'Inputs and assumptions'!$C$57,0,1,FALSE)*'Inputs and assumptions'!$C$57/$C$52 -> 123.7045451 | P51: =P48*P52+_xlfn.NORM.DIST(-1*(P50-100)/'Inputs and assumptions'!$C$57,0,1,FALSE)*'Inputs and assumptions'!$C$57/$C$52 -> 124.49351 | Q51: =Q48*Q52+_xlfn.NORM.DIST(-1*(Q50-100)/'Inputs and assumptions'!$C$57,0,1,FALSE)*'Inputs and assumptions'!$C$57/$C$52 -> 14.46027832
A52: Percentage of shifts where surplus accrues | C52: ='Base model'!C52 -> 0.5463702557 | D52: =(1-_xlfn.NORM.DIST(-1*(D50-100)/'Inputs and assumptions'!$C$57,0,1,TRUE)) -> 0.7211500119 | E52: =(1-_xlfn.NORM.DIST(-1*(E50-100)/'Inputs and assumptions'!$C$57,0,1,TRUE)) -> 0.6991917919 | F52: =(1-_xlfn.NORM.DIST(-1*(F50-100)/'Inputs and assumptions'!$C$57,0,1,TRUE)) -> 0.7255187054 | G52: =(1-_xlfn.NORM.DIST(-1*(G50-100)/'Inputs and assumptions'!$C$57,0,1,TRUE)) -> 0.7533669227 | H52: =(1-_xlfn.NORM.DIST(-1*(H50-100)/'Inputs and assumptions'!$C$57,0,1,TRUE)) -> 0.8095616473 | I52: =(1-_xlfn.NORM.DIST(-1*(I50-100)/'Inputs and assumptions'!$C$57,0,1,TRUE)) -> 0.3788275271 | J52: =(1-_xlfn.NORM.DIST(-1*(J50-100)/'Inputs and assumptions'!$C$57,0,1,TRUE)) -> 0.2557797718 | K52: =(1-_xlfn.NORM.DIST(-1*(K50-100)/'Inputs and assumptions'!$C$57,0,1,TRUE)) -> 0.5155731032 | L52: =(1-_xlfn.NORM.DIST(-1*(L50-100)/'Inputs and assumptions'!$C$57,0,1,TRUE)) -> 0.7127117848 | M52: =(1-_xlfn.NORM.DIST(-1*(M50-100)/'Inputs and assumptions'!$C$57,0,1,TRUE)) -> 0.8311388551 | N52: =(1-_xlfn.NORM.DIST(-1*(N50-100)/'Inputs and assumptions'!$C$57,0,1,TRUE)) -> 0.9214350154 | O52: =(1-_xlfn.NORM.DIST(-1*(O50-100)/'Inputs and assumptions'!$C$57,0,1,TRUE)) -> 0.9855722023 | P52: =(1-_xlfn.NORM.DIST(-1*(P50-100)/'Inputs and assumptions'!$C$57,0,1,TRUE)) -> 0.9874896935 | Q52: =(1-_xlfn.NORM.DIST(-1*(Q50-100)/'Inputs and assumptions'!$C$57,0,1,TRUE)) -> 0.2465345315
A53: Surplus (basic) | C53: $/taxi | D53: =SUMPRODUCT(D49:Q49,D48:Q48)*365/7/100 -> 23549.14658
A54: Surplus accounting for shift variation | C54: $/taxi | D54: =SUMPRODUCT(D49:Q49,D51:Q51)*365/7/100 -> 27672.9955
A55: Occupancy rate of taxis (time) | D55: =D37*D18/D39 -> 0.2800284568 | E55: =E37*E18/E39 -> 0.2764736074 | F55: 0.2819394291 | G55: 0.2898903223 | H55: 0.2997877781 | I55: 0.261988268 | J55: 0.2584708685 | K55: 0.2385414926 | L55: 0.2738144269 | M55: 0.3018638041 | N55: 0.3367831011 | O55: 0.4282643424 | P55: 0.4152453612 | Q55: 0.2560930448
A56: Revenue per taxi (including GST) | D56: =D46*$B$20 -> 278.1514659 | E56: =E46*$B$20 -> 274.6204441 | F56: 280.0496292 | G56: 287.9472287 | H56: 297.7783432 | I56: 260.2321979 | J56: 256.738375 | K56: 241.0782273 | L56: 276.7262665 | M56: 305.0739307 | N56: 340.3645719 | O56: 440.2435668 | P56: 436.4593535 | Q56: 258.816429
A57: Occupied kms per shift | D57: =D46/D13 -> 92.40939075 | E57: =E46/E13 -> 91.23629044 | F57: 93.04001161 | G57: 95.66380637 | H57: 98.92996676 | I57: 86.45612844 | J57: 85.2953866 | K57: 78.71869254 | L57: 90.35876087 | M57: 99.61505535 | N57: 111.1384234 | O57: 141.327233 | P57: 137.0309692 | Q57: 84.5107048
A59: Comparison of simulation to baseline
B62: Simulation | C62: Baseline | D62: Difference (per cent)
A63: Average occupancy | B63: =SUMPRODUCT(D55:Q55,D49:Q49)/SUM(D49:Q49) -> 0.3039620887 | C63: ='Base model'!B63 -> 0.2960993577 | D63: =B63/C63*100-100 -> 2.655436704
A64: Kilometres per year | B64: ='Inputs and assumptions'!C51*B65 -> 111274.9133 | C64: ='Base model'!B64 -> 108305.8002 | D64: 2.741416502
A65: Occupied kilometres per taxi per year | B65: =SUMPRODUCT(D57:Q57,D49:Q49)/100*365/7 -> 55789.67884 | C65: ='Base model'!B65 -> 54301.0606 | D65: 2.741416502
A66: Average revenue per taxi per year (excluding GST, real) | B66: =B67+B68 -> 159181.0108 | C66: ='Base model'!B66 -> 158841.737 | D66: 0.2135923866
A67: Average cost per taxi per year (excluding plate lease costs) | B67: =SUMPRODUCT(D47:Q47,D49:Q49)/100*365/7 -> 131508.0153 | C67: ='Base model'!B67 -> 130261.1586 | D67: 0.9571976418
A68: Plate lease costs | B68: =D54 -> 27672.9955 | C68: ='Base model'!B68 -> 28580.57838 | D68: -3.175523145
A69: Average waiting time | B69: =AVERAGE(D38:Q38) -> 8.494541275 | C69: =AVERAGE('Base model'!D38:Q38) -> 8.596792884 | D69: -1.189415754
A70: Total occupied kms (million) | B70: =SUM(D37:Q37)*365/7/1000000 -> 315.1770799 | C70: =SUM('Base model'!D37:Q37)*365/7/1000000 -> 299.6025148 | D70: 5.198409336
A71: Ave waiting time Fri and Sat nights | B71: =AVERAGE(O38:P38) -> 8.671070995 | C71: =AVERAGE('Base model'!O38:P38) -> 8.985894397 | D71: -3.503528847
A90: Baseline data
A91: Baseline taxis on the road | C91: No. | D91: ='Base model'!D39 -> 4337.664222 | E91: ='Base model'!E39 -> 4371.057252 | F91: ='Base model'!F39 -> 4408.255288 | G91: ='Base model'!G39 -> 4562.501836 | H91: ='Base model'!H39 -> 4415.267898 | I91: ='Base model'!I39 -> 3398.014441 | J91: ='Base model'!J39 -> 3071.992013 | K91: ='Base model'!K39 -> 3952.9 | L91: ='Base model'!L39 -> 4221.73389 | M91: ='Base model'!M39 -> 4382.01278 | N91: ='Base model'!N39 -> 4607.696147 | O91: ='Base model'!O39 -> 4912.89 | P91: ='Base model'!P39 -> 4658.95925 | Q91: ='Base model'!Q39 -> 3359.011928
A92: Additional taxis on the road | C92: No. | D92: =D39-D91 -> 0 | E92: =E39-E91 -> 0 | F92: 0 | G92: 0 | H92: 0 | I92: 64.64423637 | J92: 63.69534593 | K92: 175 | L92: 186.9016243 | M92: 193.9973782 | N92: 203.9886731 | O92: 217.5 | P92: 206.258157 | Q92: 60.17566552
A93: Baseline revenue per taxi | C93: $/taxi | D93: ='Base model'!D56 -> 272.5063586 | E93: ='Base model'!E56 -> 269.0492257 | F93: ='Base model'!F56 -> 274.3880133 | G93: ='Base model'!G56 -> 282.1802024 | H93: ='Base model'!H56 -> 291.7752625 | I93: ='Base model'!I56 -> 258.1922279 | J93: ='Base model'!J56 -> 254.7266541 | K93: ='Base model'!K56 -> 244.2701692 | L93: ='Base model'!L56 -> 280.4958869 | M93: ='Base model'!M56 -> 309.250002 | N93: ='Base model'!N56 -> 345.0625897 | O93: ='Base model'!O56 -> 446.5552268 | P93: ='Base model'!P56 -> 442.5951312 | Q93: ='Base model'!Q56 -> 256.8613741
A94: Simulation revenue per taxi | C94: $/taxi | D94: =D56 -> 278.1514659 | E94: =E56 -> 274.6204441 | F94: 280.0496292 | G94: 287.9472287 | H94: 297.7783432 | I94: 260.2321979 | J94: 256.738375 | K94: 241.0782273 | L94: 276.7262665 | M94: 305.0739307 | N94: 340.3645719 | O94: 440.2435668 | P94: 436.4593535 | Q94: 258.816429
A95: Headings for charts | D95: Day | K95: Night
D96: Monday | E96: Tuesday | F96: Wednesday | G96: Thursday | H96: Friday | I96: Saturday | J96: Sunday | K96: Monday | L96: Tuesday | M96: Wednesday | N96: Thursday | O96: Friday | P96: Saturday | Q96: Sunday
